Cogmind - Beta 12 @@@ ROGUE MODE // 2023.08.21 @ 13:31:18 // AFD2020/Player2 Player: Pogmind Result: Escaped singularity! Performance ------------- Evolutions (9) 4500 Regions Visited (31) 6200 Robots Destroyed (442) 2210 Value Destroyed (35828) 35828 Prototype IDs (307) 6140 Alien Tech Used (16) 3200 Bonus (87487) 87487 TOTAL SCORE: 145565 Bonus ------- Triggered High Security 1500 High Alert Combat Kills 17830 Follower Combat Kills 33336 Entered Garrisons 2000 Used RIF Installer 8000 Aligned with FarCom 300 Scanned by Researcher 500 Met Sigix 2000 Destroyed MAIN.C Guards 500 Met MAIN.C 5000 Destroyed MAIN.C Shell 5000 Destroyed MAIN.C 10000 Met Architect 300 Destroyed A8 300 Destroyed Architect 15000 Win 3000 Friendly Fire -17079 Cogmind --------- Core Integrity 254/1600 Matter 211/425 Energy 348/350 System Corruption 1% Temperature Cool (0) Movement Core (50) Location Near Former Tau Ceti IV Parts ------- > --- POWER (3) -------- (None) > --- PROPULSION (6) --- (None) > --- UTILITY (12) ----- (None) > --- WEAPON (4) ------- (None) > --- INVENTORY (5) ---- Armored Heavy Treads Perforator Peak State ------------ > --- POWER ------------ Light Quantum Reactor Reinforced Quantum Reactor Improved Quantum Reactor > --- PROPULSION ------- Experimental Biometal Heavy Treads Advanced Heavy Siege Treads Advanced Heavy Siege Treads > --- UTILITY ---------- Experimental Power Amplifier Cargo Storage Unit Experimental Energy Well Spectral Analyzer Experimental Core Analyzer Improved Armor Integrity Analyzer Advanced Weapon Cycler Heavy Regenerative Plating Experimental System Purifier Long-range Tractor Beam > --- WEAPON ----------- Perforator Sigix Broadsword > --- INVENTORY -------- Zero-point Reactor Vortex Chain Reactor Experimental Biometal Heavy Treads Experimental Biometal Heavy Treads Huge Storage Unit Experimental Matter Compressor Advanced Terrain Scanner Experimental Targeting Computer Experimental Targeting Computer Precision Matter Filter Advanced Particle Charger Centrium Heavy Armor Plating Heavy Reactive Plating AEGIS Remote Shield AEGIS Remote Shield Transdimensional Reconstructor High-powered Transdimensional Reconstructor Potential Cannon Null Cannon Core Cannon Hypervelocity Multirail Advanced Remote Datajack Meganuke [Rating: 249] Favorites ----------- Power Light Quantum Reactor Engine Reinforced Deuterium Engine Power Core Light Nuclear Core Reactor Light Quantum Reactor Propulsion Advanced Heavy Siege Treads Treads Advanced Heavy Siege Treads Leg Myomer Leg Hover Unit Aerolev Unit Utility Cargo Storage Unit Device Advanced Weapon Cycler Storage Cargo Storage Unit Processor Spectral Analyzer Hackware Relay Coupler [C] Protection Light Armor Plating Artifact Spacefold Activator Weapon Enhanced Nova Cannon Energy Gun Enhanced Quantum Rifle Energy Cannon Enhanced Nova Cannon Ballistic Gun Assault Rifle Ballistic Cannon Heavy Assault Cannon Launcher Missile Launcher Special Weapon Advanced Remote Datajack Impact Weapon Core Stripper Slashing Weapon Sigix Broadsword Piercing Weapon Enhanced Force Lance Special Melee Weapon Advanced Datajack Build | -11 -10 -10 -10 -9 -8 -8 -8 -7 -7 -7 -7 -6 -6 -6 -6 -5 -5 -5 -5 -4 -4 -3 -3 -3 -2 -2 -2 -2 -1 -1 -1 ------- Run | Jun Mat Min Exi Min Mat Sto Gar Fac Gar Fac Gar Fac Gar Fac Gar Fac Gar Fac Gar Fac Gar Res Tes Gar Res Qua Sec Gar Acc Com Ac0 Slots Evolved 18 | . . . . . 4 . . 2 . . . 2 . . . 2 . . . 2 . 2 . . 2 . . . 2 . . Power 2 | . . . . . . . . . . . . . . . . . . . . . . 1 . . . . . . 1 . . Propulsion 4 | . . . . . 2 . . . . . . . . . . 2 . . . . . . . . . . . . . . . Utility 10 | . . . . . 2 . . 1 . . . 2 . . . . . . . 2 . 1 . . 2 . . . . . . Weapon 2 | . . . . . . . . 1 . . . . . . . . . . . . . . . . . . . . 1 . . Parts Attached 788 | 7 4 2 2 3 26 24 22 19 31 4 17 4 36 7 20 13 25 12 37 11 15 8 28 43 9 50 26 19 69 170 25 Power 53 | 1 . . . 1 5 1 . 1 1 . 1 . . . . . . . 1 . . 1 2 4 . 6 4 1 8 15 . Engine 7 | 1 . . . 1 3 1 . . . . 1 . . . . . . . . . . . . . . . . . . . . Core 4 | . . . . . 2 . . 1 1 . . . . . . . . . . . . . . . . . . . . . . Reactor 42 | . . . . . . . . . . . . . . . . . . . 1 . . 1 2 4 . 6 4 1 8 15 . Propulsion 88 | 2 . . . . 6 8 8 1 6 . . . 2 1 1 1 . 2 10 . 2 2 . 7 . 5 . 1 6 17 . Treads 86 | 2 . . . . 6 8 8 1 5 . . . 2 1 1 1 . 2 10 . 2 2 . 7 . 4 . 1 6 17 . Leg 1 | . . . . . . . . . . . . . . . . . . . . . . . . . . 1 . . . . . Wheel . | . . . . . . . . . . . . . . . . . . . . . . . . . . . . . . . . Hover 1 | . . . . . . . . . 1 . . . . . . . . . . . . . . . . . . . . . . Flight . | . . . . . . . . . . . . . . . . . . . . . . . . . . . . . . . . Utility 366 | 2 2 . . . 8 3 11 10 14 2 11 3 13 4 12 8 15 3 14 8 5 5 12 14 6 18 18 8 37 84 16 Device 156 | 1 . . . . . . 3 . . . . . 1 . 2 5 5 . 3 4 1 1 9 3 2 12 13 2 31 43 15 Storage 18 | 1 1 . . . . . . . 2 1 3 . 2 . 1 . . . 2 . . . . . . . . 1 . 4 . Processor 17 | . . . . . . . . . . . . . . . . . . . . 1 . . . . . 2 1 . 3 9 1 Hackware 103 | . . . . . . 1 2 8 8 1 8 2 4 3 6 2 7 2 7 2 4 4 1 9 4 3 2 4 3 6 . Protection 70 | . 1 . . . 8 2 6 2 4 . . 1 6 1 3 1 3 1 2 1 . . 2 2 . 1 . 1 . 22 . Artifact 2 | . . . . . . . . . . . . . . . . . . . . . . . . . . . 2 . . . . Weapon 281 | 2 2 2 2 2 7 12 3 7 10 2 5 1 21 2 7 4 10 7 12 3 8 . 14 18 3 21 4 9 18 54 9 Energy Gun 11 | . . . . . . 3 . . . . . . 1 . 1 1 . . . . . . . 4 . . . . . 1 . Energy Cannon 80 | . . . . . . 1 . . . . . . 1 . . . . 1 2 1 4 . 9 9 2 13 4 5 7 15 6 Ballistic Gun 31 | 2 2 1 . . . 2 . . . . . . 1 . . . . . . . . . 1 . . . . . 9 12 1 Ballistic Cannon 52 | . . . 2 1 5 5 2 . 4 2 2 1 2 . 2 2 2 2 6 . . . 1 . . . . 2 . 7 2 Launcher 11 | . . 1 . 1 2 . 1 . 1 . . . 1 . . . . 1 2 . . . . . . . . . . 1 . Special Weapon 57 | . . . . . . . . 4 3 . 2 . 8 2 3 . 6 2 . 2 2 . 2 1 1 5 . 2 1 11 . Impact Weapon 1 | . . . . . . . . . . . . . . . . . . . . . . . . . . 1 . . . . . Slashing Weapon 10 | . . . . . . 1 . . . . . . . . . . . . . . . . . . . 1 . . 1 7 . Piercing Weapon 27 | . . . . . . . . 3 2 . 1 . 7 . 1 1 2 1 2 . 2 . 1 4 . . . . . . . Special Melee Weapon 1 | . . . . . . . . . . . . . . . . . . . . . . . . . . 1 . . . . . Unidentified Prototypes 30 | . . . . . 1 7 . . 1 . . . . . . . 1 . . . . . 7 1 . 5 2 . 1 4 . Corrupted Parts 7 | . . . . . . . . . . . . . . . . . . . . . . . . . . . . . . 7 . System Corruption 24 | . . . . . . . . . . . . . . . . . . . . . . . . . . . . . . 24 . Parts Lost 25 | . . . . . 3 . . 1 1 . 3 2 . . . 1 . 1 . . . 1 . 1 . 2 . . 3 5 1 Power 4 | . . . . . . . . 1 . . 1 . . . . . . . . . . . . 1 . . . . . 1 . Propulsion 1 | . . . . . . . . . . . . . . . . . . 1 . . . . . . . . . . . . . Utility 15 | . . . . . 3 . . . . . 1 1 . . . . . . . . . 1 . . . 2 . . 3 4 . Weapon 5 | . . . . . . . . . 1 . 1 1 . . . 1 . . . . . . . . . . . . . . 1 Highest Loss Streak 2 | . . . . . 2 . . 1 1 . 1 2 . . . 1 . 1 . . . 1 . 1 . 2 . . 1 1 1 To Critical Strikes 3 | . . . . . . . . . . . . . . . . 1 . 1 . . . . . . . . . . . . 1 Average Slot Usage (%) 80 | . 100 100 100 100 97 89 89 89 89 82 80 65 68 72 69 64 74 79 80 76 81 82 84 79 76 75 77 81 78 74 73 Engine 2 | . 14 14 14 14 4 9 9 1 . . 4 6 6 6 6 5 5 5 4 . . . . . . . . . . . . Reactor 5 | . . . . . . . . . . . . . . . . . . . . 5 5 6 9 8 8 7 8 8 10 10 8 Treads 18 | . 28 28 28 28 36 35 36 30 28 23 23 20 13 12 13 13 17 20 21 15 18 19 19 17 13 13 13 13 12 11 12 Device 6 | . 1 . . . . . 2 5 . . . . 2 6 4 3 3 2 3 6 9 6 3 7 12 9 8 12 9 10 12 Storage 6 | . 14 14 14 14 9 9 9 7 9 12 10 6 7 7 7 5 5 5 5 5 5 4 4 4 4 4 4 4 4 4 4 Processor 3 | . . . . . . . . . . . . . . . . . . . . . . . . . . 3 3 4 4 9 23 Hackware 15 | . . . . . . 7 13 15 22 24 23 17 14 18 16 12 18 23 18 22 21 25 29 22 24 24 24 21 22 10 . Protection 6 | . 12 14 14 14 26 19 11 7 4 . . 1 8 5 5 4 4 2 4 5 5 4 3 2 . . . 3 4 5 4 Energy Cannon 2 | . . . . . . . . . . . . . . . . . . . 1 7 9 9 5 7 8 6 8 7 2 1 3 Ballistic Gun 1 | . 28 28 17 . . . . . . . . . . . . . . . . . . . . . . . . . 1 . 1 Ballistic Cannon 3 | . . . 10 28 15 8 8 7 6 5 6 6 5 6 5 8 7 6 3 . . . . . . . . . . 1 . Special Weapon 3 | . . . . . . . . 4 6 7 6 6 2 5 5 5 4 4 5 5 5 4 4 4 4 3 4 4 4 2 . Slashing Weapon 1 | . . . . . . . . . . . . . . . . . . . . . . . . . . . . . 4 4 3 Naked Turns 3 | . . . . . . . . . . . . . . . . . . . . . . . . . . . . . . . 3 Heaviest Build 348 | 13 92 92 94 94 117 117 115 120 113 104 170 173 197 189 195 192 196 184 194 195 196 214 214 238 219 231 235 238 264 348 207 Greatest Support 250 | 40 40 40 40 40 80 80 80 83 135 135 135 135 145 145 145 205 205 205 230 230 230 230 230 240 240 240 240 240 235 250 225 Greatest Overweight (x) 2 | . 2 2 2 2 1 1 1 1 1 . 1 1 1 2 1 1 . 1 1 . . 1 1 1 . 1 . 1 1 1 . Average Overweight (x) . | . 1 2 2 2 1 1 1 1 . . . 1 1 1 1 . . . . . . . . . . . . . . . . Largest Inventory Capacity 30 | 8 25 25 25 25 25 25 25 25 25 25 30 30 30 30 30 30 30 30 30 30 30 30 30 30 30 30 30 30 30 30 25 Average Capacity 28 | 7 20 25 25 25 25 25 25 25 25 25 26 30 30 30 30 30 30 30 30 30 30 30 30 30 30 30 30 30 30 29 24 Most Carried 30 | 5 23 25 25 25 25 25 25 25 25 25 30 30 30 30 30 30 30 30 30 30 30 30 30 30 30 30 30 30 30 30 25 Average Carried 27 | 3 13 24 24 25 24 24 24 24 24 24 24 29 29 29 29 29 29 29 29 28 29 29 29 29 28 28 29 29 29 29 24 Final Capacity 30 | 8 25 25 25 25 25 25 25 25 25 25 30 30 30 30 30 30 30 30 30 30 30 30 30 30 30 30 30 30 30 30 5 Final Carried 30 | 5 23 25 25 25 25 25 25 22 25 25 30 26 30 29 30 30 30 30 29 30 30 30 30 30 27 30 28 30 29 30 4 Class Distribution -------------------- 59% | Botlord-Mutant 11% | Mutant 8% | Hauler-Mutant 8% | Scavenger-Mutant 6% | Commander-Mutant 4% | Bothacker-Mutant Dominant Class ---------------- Mutant | -10/Materials Mutant | -10/Mines Mutant | -10/Exiles Mutant | -9/Mines Mutant | -8/Materials Scavenger-Mutant | -8/Storage Scavenger-Mutant | -8/Garrison Bothacker-Mutant | -7/Factory Bothacker-Mutant | -7/Garrison Botlord-Mutant | -7/Factory Botlord-Mutant | -7/Garrison Botlord-Mutant | -6/Factory Botlord-Mutant | -6/Garrison Botlord-Mutant | -6/Factory Botlord-Mutant | -6/Garrison Botlord-Mutant | -5/Factory Botlord-Mutant | -5/Garrison Botlord-Mutant | -5/Factory Botlord-Mutant | -5/Garrison Botlord-Mutant | -4/Factory Botlord-Mutant | -4/Garrison Botlord-Mutant | -3/Research Botlord-Mutant | -3/Testing Botlord-Mutant | -3/Garrison Botlord-Mutant | -2/Research Botlord-Mutant | -2/Quarantine Botlord-Mutant | -2/Section 7 Botlord-Mutant | -2/Garrison Botlord-Mutant | -1/Access Botlord-Mutant | -1/Command Scavenger-Assassin | -1/Access_0 Resources | -11 -10 -10 -10 -9 -8 -8 -8 -7 -7 -7 -7 -6 -6 -6 -6 -5 -5 -5 -5 -4 -4 -3 -3 -3 -2 -2 -2 -2 -1 -1 -1 ----------- Run | Jun Mat Min Exi Min Mat Sto Gar Fac Gar Fac Gar Fac Gar Fac Gar Fac Gar Fac Gar Fac Gar Res Tes Gar Res Qua Sec Gar Acc Com Ac0 Matter Collected 21773 | 328 372 36 . 68 807 683 840 500 809 25 762 412 843 311 765 303 641 537 801 299 310 336 1686 1073 556 797 1068 651 2065 2956 133 Remotely 2648 | . . . . . . . 195 . . . . . . . . . . . . . . . . . . . . . 1109 1344 . Salvage Created 26316 | 271 274 9 . 64 829 551 400 399 306 . 148 63 319 203 245 169 188 202 67 180 305 178 608 1015 1120 280 1800 771 5671 8999 682 Parts 1112 | 22 21 2 . 3 54 33 16 24 22 . 4 2 18 10 10 11 11 8 2 7 11 6 26 41 33 20 56 28 208 379 24 Haulers Intercepted 6 | . . . . . 2 2 . . . . . . . . . . . . . . . . . . 1 . . . 1 . . Recyclers Shooed 10 | . 2 . . . 1 . . . . . . . . 1 . . . . . . . . . . . . 1 . . 5 . Parts Field Recycled . | . . . . . . . . . . . . . . . . . . . . . . . . . . . . . . . . Retrieved Matter . | . . . . . . . . . . . . . . . . . . . . . . . . . . . . . . . . Parts Self-Destructed . | . . . . . . . . . . . . . . . . . . . . . . . . . . . . . . . . Prevented . | . . . . . . . . . . . . . . . . . . . . . . . . . . . . . . . . Kills | -11 -10 -10 -10 -9 -8 -8 -8 -7 -7 -7 -7 -6 -6 -6 -6 -5 -5 -5 -5 -4 -4 -3 -3 -3 -2 -2 -2 -2 -1 -1 -1 ------- Run | Jun Mat Min Exi Min Mat Sto Gar Fac Gar Fac Gar Fac Gar Fac Gar Fac Gar Fac Gar Fac Gar Res Tes Gar Res Qua Sec Gar Acc Com Ac0 Combat Hostiles Destroyed 309 | . 5 2 . 3 20 7 11 7 9 . 1 1 5 1 . 1 6 4 5 3 3 3 5 13 15 7 15 3 60 85 9 Melee 2 | . . . . . . . . . 1 . . . . . . . 1 . . . . . . . . . . . . . . Guns 147 | . 5 . . . . . . . . . . . . . . . . . . . . . . 1 . . . . 59 79 3 Cannons 132 | . . . . 1 18 7 10 7 6 . 1 1 3 1 . 1 5 4 1 3 2 3 4 12 12 6 13 3 . 4 4 AOE 19 | . . 2 . 2 2 . 1 . 2 . . . 2 . . . . . 4 . . . . . 1 . . . 1 . 2 Classes Destroyed 26 | 3 2 1 . 1 3 2 . 3 . . 1 . . . . . . 1 1 . . . 2 . . . 1 . 4 1 . Worker 24 | 1 . . . . . 2 . 2 . . . . . 1 . 2 . . . . . 1 2 . . . 2 . 1 10 . Builder 15 | . . . . 1 2 2 . . . . . . . . . 2 . 2 . . . . . . 2 . 1 . 3 . . Tunneler 8 | 7 . . . . . . . 1 . . . . . . . . . . . . . . . . . . . . . . . Hauler 6 | . . . . . 2 2 . . . . . . . . . . . . . . . . . . 1 . . . 1 . . Recycler 17 | 1 . . . . 1 1 . . . . . . . 1 . 1 . . . . . . . . . . 6 . 1 5 . Carrier 3 | . . . . . . . . . . . . . . . . . . . . . . . . . . . . . 2 1 . Mechanic 18 | . . . . . . 1 . . . . . . . . . . . . . . . . . . . . 1 . 6 10 . Operator 5 | . 3 . . . . . . . . . . . . . . . . . . . . . . . . . . . 1 1 . Watcher 14 | . . . . . 3 1 . 1 . . . . . . . . . . . . . . 2 . 1 . 1 . . 5 . Swarmer 30 | . . 2 . . 4 . 3 . 2 . 1 . 3 . . . 6 . 4 . 1 . . 1 2 . . . . 1 . Saboteur 5 | . . . . . . . . . . . . . . . . . . . . . . . . . . . . . 1 4 . Grunt 86 | . 5 . . 3 10 5 5 4 5 . . . . . . . 1 1 . . 2 2 2 4 5 . 4 . 15 13 . Brawler 13 | . . . . . . 1 1 . . . . 1 . . . . . . . . . . 1 1 1 . . 1 3 3 . Duelist 12 | . . . . . . . . 1 . . . . . 1 . . . . . 2 . . . 2 . . 1 . . 5 . Protector 14 | . . . . . . . . . . . . . . . . . . . . . . . . . . . . . 2 12 . Researcher 1 | . . . . . . . . . . . . . . . . . . . . . . . 1 . . . . . . . . Sentry 20 | . . . . . 6 1 3 1 . . . . . . . . . . . . . . 1 1 . . . . 7 . . Demolisher 8 | . . . . . . . . . . . . . . . . . . 1 . 1 . . . . 2 . 2 . 2 . . Hunter 6 | . . . . . . . . . . . . . . . . . . . . . . . . . . . . . 4 2 . Programmer 62 | . . . . . . . . 1 2 . . . 2 . . 1 . 2 . . 1 1 1 4 3 1 6 3 15 19 . Heavy 2 | . . . . . . . . 1 . . . . . . . . . . . . . . . . . . . . . 1 . Q-Series 1 | . . . . . . . . . . . . . . . . . . . . . . . . . . . 1 . . . . Behemoth 5 | . . . . . . . . . . . . . . . . . . . 1 . 1 1 . . 1 . . . . 1 . Quarantine Guard 6 | . . . . . . . . . . . . . . . . . . . . . . . . . . 6 . . . . . S7 Guard 1 | . . . . . . . . . . . . . . . . . . . . . . . . . . . 1 . . . . Enhanced Grunt 5 | . . . . . . . . . . . . . . . . . . . . . . . . . . . . . . . 5 Enhanced Hunter 2 | . . . . . . . . . . . . . . . . . . . . . . . . . . . . . . . 2 Combat Programmer 2 | . . . . . . . . . . . . . . . . . . . . . . . . . . . . . . 2 . Investigator 4 | . . . . . . . . . . . . . . . . . . . . . . . . . 1 . . . 1 2 . Striker 25 | . . . . . . . . . . . . . . . . . . . . . . . 1 . 1 . . . 9 14 . Executioner 17 | . . . . . . . . . . . . . . . . . . . . . . . . . . . . . 6 11 . Alpha 7 1 | . . . . . . . . . . . . . . . . . . . . . . . . . . . . . . 1 . Guerrilla 1 | . . . . . . . . . . . 1 . . . . . . . . . . . . . . . . . . . . Best Kill Streak 22 | 5 1 2 . 3 4 2 2 4 2 . 1 1 2 1 . 4 3 2 2 2 1 2 1 3 4 3 5 2 15 22 3 Combat Bots Only 17 | . 1 2 . 3 3 2 2 3 2 . 1 1 2 1 . 1 3 2 2 2 1 1 1 3 4 3 4 2 13 17 3 Max Kills in Single Turn 3 | 1 1 2 . 2 3 1 1 2 2 . 1 1 2 1 . 2 1 1 2 1 1 1 1 2 1 1 2 1 3 3 3 Gunslinging . | . . . . . . . . . . . . . . . . . . . . . . . . . . . . . . . . Exploded 2 | . . 2 . 2 2 . 1 . 2 . . . 2 . . . . . 2 . . . . . 1 . . . 1 . 2 Melee 1 | . . . . . . . . . 1 . . . . . . . 1 . . . . . . . . . . . . . . Uniques/NPCs Destroyed 4 | . . . . . . . . . . . . . . . . . . . . . . . . . . . . . . 2 2 MAIN.C Shell (-1/Command) MAIN.C (-1/Command) A8 (-1/Access_0) Architect (-1/Access_0) Combat | -11 -10 -10 -10 -9 -8 -8 -8 -7 -7 -7 -7 -6 -6 -6 -6 -5 -5 -5 -5 -4 -4 -3 -3 -3 -2 -2 -2 -2 -1 -1 -1 -------- Run | Jun Mat Min Exi Min Mat Sto Gar Fac Gar Fac Gar Fac Gar Fac Gar Fac Gar Fac Gar Fac Gar Res Tes Gar Res Qua Sec Gar Acc Com Ac0 Damage Taken 20599 | . 289 . . 108 704 492 718 343 756 5 509 260 776 206 458 102 496 378 329 272 578 483 939 1133 572 598 790 628 2151 3469 2057 Core 1561 | . 39 . . 22 46 64 81 38 47 . 80 61 90 3 81 . 26 . . . 39 . 23 95 87 . 40 89 107 233 170 Absorbed by Shields 9010 | . . . . . . . . . 13 . . . . 43 . . . . . . . 47 64 144 498 509 822 656 1963 2255 1996 Reduced by Siege Mode 1012 | . . . . . . . . . . . . . . . . . . 11 . . 67 . . 54 63 60 120 36 97 426 78 Redirected to Shielding 37 | . . . . . . . . . . . . . . . . . . . . . . . . . . . . . . 37 . Regen/Repaired (Parts) 3871 | . . . . . . 128 . . . . . . . 359 . . . 67 66 16 . . 157 . . 107 26 . 762 1463 720 Core Remaining (%) 48 | 100 . . . 53 . . 3 . . . 44 . . . 41 . . . 79 . 82 . . 40 . . . 25 . . 15 Volleys Fired 2666 | 29 40 2 . 2 70 56 76 53 64 4 89 15 66 54 70 34 49 45 51 42 64 66 90 133 120 219 152 103 276 469 63 Largest 3 | 2 2 2 . 2 2 1 1 1 1 1 1 1 1 1 1 2 2 3 2 2 2 2 2 2 2 3 2 2 1 2 2 Hottest 500 | 40 40 40 . 70 70 60 60 60 60 5 60 60 60 60 60 114 114 171 120 240 240 240 240 240 240 334 240 240 130 200 500 Shots Fired 3119 | 58 80 3 . 3 125 56 76 53 67 4 89 15 66 55 70 41 53 56 60 50 87 79 100 168 174 252 208 140 278 488 65 Gun 538 | 58 80 2 . . . . . . . . . . . . . . . . . . . . . 1 . . . . 173 217 7 Cannon 1596 | . . . . 2 124 56 72 29 30 . 30 3 43 15 35 19 16 24 24 23 64 37 50 118 129 230 150 112 38 65 58 Launcher 13 | . . 1 . 1 1 . 4 . 1 . . . 1 . . . . 1 3 . . . . . . . . . . . . Special 972 | . . . . . . . . 24 36 4 59 12 22 40 35 22 37 31 33 27 23 42 50 49 45 22 58 28 67 206 . Kinetic 1065 | 58 80 2 . 2 124 56 72 29 30 . 30 3 43 15 35 19 16 24 22 . . . . . . . . . 173 221 11 Thermal 1079 | . . . . . . . . . . . . . . . . . . . 2 23 64 37 50 119 129 91 150 112 38 210 54 Explosive 13 | . . 1 . 1 1 . 4 . 1 . . . 1 . . . . 1 3 . . . . . . . . . . . . Electromagnetic 139 | . . . . . . . . . . . . . . . . . . . . . . . . . . 139 . . . . . Robot Hit Streak 70 | 9 8 3 . 5 10 11 11 8 11 11 18 19 10 12 10 6 8 12 16 9 10 14 18 10 15 29 24 14 29 70 28 Robot Miss Streak 8 | 2 2 . . . 8 3 2 3 4 . 6 1 2 3 2 2 2 2 2 2 5 3 2 2 4 4 3 3 5 5 2 Penetration Max 3 | . . . . . . . 1 1 . . . . . . . 1 . 1 . . . . . . . . . . 3 3 1 Secondary Targets 1 | . 1 . . . . . . . . . . . . . . . . . . . . . . . . . . . . . . Max Gunslinging Chain 1 | . 1 . . . . . . . . . . . . . . . . . . . . . . . . . . . . . . Shots Hit Robots 2121 | 35 48 2 . 2 76 38 30 41 38 4 46 11 28 38 36 25 39 39 43 35 41 46 65 97 108 186 108 69 218 474 55 Core Hits 836 | 18 21 5 . 4 40 13 12 12 9 . 8 1 11 3 3 6 6 6 9 3 8 7 14 23 25 20 32 18 159 292 48 Critical Kills 180 | . . . . . . . . . . . . . . . . . . . . . 1 . 2 . 3 1 2 1 70 95 5 Critical Parts Destroyed 255 | 1 . . . . . . . . . . . . . . . . . . . . . . . . . . . . 123 123 8 Critical Strikes 534 | 1 . . . . 6 6 2 . 5 . 3 1 1 . . 1 2 4 1 . 1 . 2 1 3 1 2 1 212 258 20 Meltdown 11 | . . . . . . . . . . . . . . . . . . . . . 1 . 2 . 3 1 2 1 . 1 . Destroy 469 | 1 . . . . . . . . . . . . . . . . . . . . . . . . . . . . 212 236 20 Blast 30 | . . . . . 6 6 2 . 5 . 3 1 . . . 1 1 4 1 . . . . . . . . . . . . Sever 21 | . . . . . . . . . . . . . . . . . . . . . . . . . . . . . . 21 . Impale 3 | . . . . . . . . . . . . . 1 . . . 1 . . . . . . 1 . . . . . . . Melee Attacks 263 | . . . . . . 1 . 2 2 . 9 . 31 . 14 3 39 3 39 1 . . 6 15 . . . . 14 84 . Impact . | . . . . . . . . . . . . . . . . . . . . . . . . . . . . . . . . Slashing 99 | . . . . . . 1 . . . . . . . . . . . . . . . . . . . . . . 14 84 . Piercing 164 | . . . . . . . . 2 2 . 9 . 31 . 14 3 39 3 39 1 . . 6 15 . . . . . . . Sneak Attacks 73 | . . . . . . 1 . . 2 . . . . . . . 7 . 1 . . . 5 . . . . . 2 55 . Combat Hostiles 7 | . . . . . . . . . 2 . . . . . . . 4 . . . . . 1 . . . . . . . . Follow-up Attacks . | . . . . . . . . . . . . . . . . . . . . . . . . . . . . . . . . Damage Inflicted 57182 | 293 521 98 . 224 1823 2165 1627 1342 955 4 544 62 1005 458 964 634 839 658 1073 466 1173 838 1720 3152 3312 1464 2978 2641 3353 12759 8037 Guns 7319 | 293 510 26 . . . . . . . . . . . . . . . . . . . . . 32 . . . . 2651 3699 108 Cannons 34115 | . . . . 17 1672 2005 1490 1337 710 . 223 62 549 415 167 453 227 606 570 466 1173 813 1111 2150 3296 1464 2888 2641 285 1743 5582 Explosions 4495 | . . 70 . 196 138 . 137 . 115 . . . 184 . . . . 51 389 . . . . . . . . . . 868 2347 Melee 9622 | . . . . . . 84 . . 130 . 321 . 272 . 797 . 612 . 114 . . . 502 970 . . . . 405 5415 . Ramming 625 | . 11 2 . 11 13 76 . 5 . 4 . . . 43 . 181 . 1 . . . 25 107 . 16 . 90 . 12 28 . Kinetic 17930 | 293 510 26 . 17 1672 2005 1490 1337 710 . 223 62 549 415 167 453 227 606 570 . . . . . . . . . 2651 3750 197 Thermal 27607 | . . 45 . 112 . . . . . . . . . . . . . . . 466 1173 813 1111 2182 3296 1312 2888 2641 285 3443 7840 Explosive 1246 | . . 25 . 84 138 . 137 . 115 . . . 184 . . . . 51 389 . . . . . . . . . . 123 . Electromagnetic 152 | . . . . . . . . . . . . . . . . . . . . . . . . . . 152 . . . . . Impact . | . . . . . . . . . . . . . . . . . . . . . . . . . . . . . . . . Slashing 5904 | . . . . . . 84 . . . . . . . . . . . . . . . . . . . . . . 405 5415 . Piercing 3718 | . . . . . . . . . 130 . 321 . 272 . 797 . 612 . 114 . . . 502 970 . . . . . . . Highest Corruption 11 | . . . . . . . . 1 1 1 3 1 1 1 1 . . 1 1 . 1 . 3 7 4 5 7 9 6 11 1 Average Corruption 2 | . . . . . . . . 1 1 1 2 1 1 1 1 . . 1 1 . 1 . 2 6 3 4 5 8 2 3 1 Corruption Purged 36 | . . . . . . . . . . . . . . . . . . . . . . . . . . . . . 6 30 . Corruption Blocked 40 | . . . . . . . . . . . . . . . . . . . . . . . . . . . 40 . . . . Effects 446 | . . . . . . . . . 16 1 29 . 16 5 28 . . 2 15 . 5 . 18 74 3 37 82 70 15 29 1 Message Errors 105 | . . . . . . . . . 4 . 7 . 5 . 12 . . . 1 . . . 6 15 1 9 17 18 3 7 . Matter Fused 124 | . . . . . . . . . 4 . 11 . 3 1 4 . . 1 7 . 2 . 2 18 2 10 24 22 4 8 1 Heat Flow Errors 45 | . . . . . . . . . . . 3 . 2 . 6 . . 1 2 . . . 2 9 . 2 10 5 2 1 . Energy Discharges 57 | . . . . . . . . . 4 . 3 . 4 . 2 . . . . . 2 . 3 9 . 7 8 9 . 6 . Parts Rejected 1 | . . . . . . . . . . . . . . . . . . . . . . . . . . . . . 1 . . Parts Fused 6 | . . . . . . . . . . . . . . . . . . . 1 . . . . 2 . 2 1 . . . . Data Loss (minor) 53 | . . . . . . . . . 1 1 3 . 1 1 4 . . . 1 . . . 4 12 . 4 8 9 . 4 . Data Loss (major) 19 | . . . . . . . . . . . 2 . 1 1 . . . . 1 . 1 . . 4 . 2 4 2 1 . . Misfires 20 | . . . . . . . . . 3 . . . . 1 . . . . 1 . . . . 3 . . 7 1 3 1 . Alerts 8 | . . . . . . . . . . . . . . 1 . . . . . . . . . 1 . 1 2 2 . 1 . Weapon Failures 8 | . . . . . . . . . . . . . . . . . . . 1 . . . 1 1 . . 1 2 1 1 . Overload Shots . | . . . . . . . . . . . . . . . . . . . . . . . . . . . . . . . . Overflow Damage 3518 | . . . . 18 40 160 101 111 58 . . . 8 45 . 70 86 49 . 40 140 86 105 69 139 . 152 110 164 1098 669 Projectiles 1858 | . . . . . 25 160 101 111 58 . . . 8 45 . 38 . 49 . 40 140 86 33 69 139 . 152 110 . 150 344 Explosions 379 | . . . . 18 15 . . . . . . . . . . . . . . . . . . . . . . . . 21 325 Melee 1281 | . . . . . . . . . . . . . . . . 32 86 . . . . . 72 . . . . . 164 927 . Knockbacks 52 | . . . . . 9 12 4 5 6 . . . . 4 1 3 2 1 1 . . . . . . . . . . 4 . Impact 1 | . . . . . . . . . . . . . . . . . . . . . . . . . . . . . . 1 . Kinetic 48 | . . . . . 8 11 4 5 5 . . . . 4 1 3 2 1 1 . . . . . . . . . . 3 . Secondary 3 | . . . . . 1 1 . . 1 . . . . . . . . . . . . . . . . . . . . . . Self-Inflicted Damage 66 | . . . . . . . . . . . . . . . . . . . 23 . . . . . . . . . . 43 . Shots 2 | . . . . . . . . . . . . . . . . . . . 1 . . . . . . . . . . 1 . Rammed 40 | . 2 1 . 1 1 8 . 2 . 1 . . . 3 . 9 . . . . . 1 4 . 1 . 2 . 1 3 . Targets Rammed 49 | . 2 1 . 2 2 11 . 2 . 1 . . . 3 . 10 . 1 . . . 1 5 . 1 . 3 . 1 3 . Kicked . | . . . . . . . . . . . . . . . . . . . . . . . . . . . . . . . . Crushed 9 | . . . . 1 1 3 . . . . . . . . . 1 . 1 . . . . 1 . . . 1 . . . . Highest Temperature 388 | . 26 . . 18 291 200 265 12 53 . 265 12 210 118 246 231 146 243 350 216 160 270 388 360 18 80 137 181 178 178 158 Average Temperature 59 | . 11 . . 8 65 48 44 5 12 . 43 6 30 43 59 63 42 60 109 68 56 76 80 71 5 38 50 99 46 52 58 Received Heat Transfer 2475 | . 144 . . 60 135 261 315 87 126 . 159 72 111 54 117 18 36 27 45 48 69 66 9 42 51 4 48 12 129 182 48 Siege Activations 83 | . . . . . . . . . . . 1 . 2 3 . 1 1 1 2 2 3 . 6 6 6 12 7 1 14 11 4 Total Turns 2217 | . . . . . . . . . . . 1 . 15 32 . 6 5 10 30 9 33 . 16 47 61 1346 68 25 156 316 41 Longest Duration 572 | . . . . . . . . . . . 1 . 13 23 . 6 5 10 28 6 13 . 7 15 18 572 23 25 30 61 13 Robots Corrupted . | . . . . . . . . . . . . . . . . . . . . . . . . . . . . . . . . Combat Hostiles . | . . . . . . . . . . . . . . . . . . . . . . . . . . . . . . . . Parts Fried 1 | . . . . . . . . . . . . . . . . . . . . . . . . . . . . . . . 1 Impact Corruptions 5 | . . . . . . . . . 1 . . . . . . 3 . . . . . . 1 . . . . . . . . Robots Melted 13 | . . . . . . . . . . . . . . . . . . . . . 1 . 2 . 3 1 2 1 1 2 . Combat Hostiles 9 | . . . . . . . . . . . . . . . . . . . . . 1 . 1 . 2 1 2 . . 2 . Parts Melted 36 | . . . . . . . . . . . . . . . . . . . . . 3 . 3 1 12 4 4 5 2 2 . Heat Transferred 19567 | . . 50 . 100 . . . . . . . . . . . . . . . 407 962 703 888 1766 2700 1257 2479 2118 259 3652 2226 Parts Sabotaged . | . . . . . . . . . . . . . . . . . . . . . . . . . . . . . . . . Parts Stolen . | . . . . . . . . . . . . . . . . . . . . . . . . . . . . . . . . Parts Stripped . | . . . . . . . . . . . . . . . . . . . . . . . . . . . . . . . . Power Chain Reactions . | . . . . . . . . . . . . . . . . . . . . . . . . . . . . . . . . Missiles Intercepted 11 | . . . . . . . . . . . . . . . . . . . . . . . . . . . 5 . 4 2 . Alert | -11 -10 -10 -10 -9 -8 -8 -8 -7 -7 -7 -7 -6 -6 -6 -6 -5 -5 -5 -5 -4 -4 -3 -3 -3 -2 -2 -2 -2 -1 -1 -1 ------- Run | Jun Mat Min Exi Min Mat Sto Gar Fac Gar Fac Gar Fac Gar Fac Gar Fac Gar Fac Gar Fac Gar Res Tes Gar Res Qua Sec Gar Acc Com Ac0 Peak Influence 5911 | 45 367 111 . 103 689 892 2371 1244 2226 1372 1915 1244 2158 1215 1935 1026 1205 740 1570 1006 577 1709 1267 2731 2617 1695 1571 2031 4924 5911 . Initial 3151 | . 29 27 . . . 265 218 1244 655 1168 820 1005 812 1132 704 1015 488 632 448 823 116 324 960 851 1536 1471 897 1104 1218 3151 . Average 1928 | 15 120 9 . 22 391 412 1373 901 1399 1288 1489 1090 1376 1096 1234 571 877 605 1064 517 389 920 811 1881 1870 1491 1209 1661 2261 5434 . Maximum Alert Level 5 | . 1 . . . 2 3 5 4 5 4 5 4 5 4 5 3 4 3 4 3 2 5 4 5 5 5 4 5 5 5 . Low Security (%) 8 | 100 83 100 . 100 15 9 . . . . . . . . . . . . . 7 12 . . . . . . . . . . Level 1 5 | . 16 . . . 44 61 1 . . . . . . . . 38 . . . 46 33 9 . . . . . . . . . Level 2 7 | . . . . . 39 12 10 . 5 . . . . . . 42 17 95 12 12 54 32 43 . . . . . . . . Level 3 13 | . . . . . . 16 20 87 28 . 17 57 18 44 44 19 64 3 41 33 . 25 45 13 . . 20 . 18 . . Level 4 26 | . . . . . . . 31 12 27 100 28 42 57 55 33 . 17 . 45 . . 22 10 17 35 95 79 38 31 . . Level 5 20 | . . . . . . . 34 . 39 . 53 . 24 . 21 . . . . . . 10 . 68 16 4 . 61 4 38 . High Security 19 | . . . . . . . . . . . . . . . . . . . . . . . . . 48 . . . 45 61 . Max Security . | . . . . . . . . . . . . . . . . . . . . . . . . . . . . . . . . Sterilizations 1 | . . . . . . . . . . . . . . . . . . . . . . . . . . . . . 1 . . Squads Dispatched 214 | . 5 1 . . 5 7 . 7 . 4 . 8 . 7 . 6 . 9 . 7 . 8 12 . 17 2 22 . 50 37 . Investigation 15 | . 2 1 . . 2 1 . . . 1 . . . 1 . . . 1 . . . . . . . 2 2 . 2 . . Extermination 22 | . . . . . . . . 2 . . . 1 . 1 . 2 . 1 . 1 . 1 4 . . . 7 . 2 . . Reinforcement 37 | . 3 . . . 2 1 . 4 . . . 3 . 2 . 3 . 2 . 1 . 4 2 . 1 . 3 . 5 1 . Assault 115 | . . . . . 1 2 . . . . . 1 . 1 . . . 2 . 1 . 3 4 . 16 . 10 . 38 36 . Garrison 25 | . . . . . . 3 . 1 . 3 . 3 . 2 . 1 . 3 . 4 . . 2 . . . . . 3 . . Intercept . | . . . . . . . . . . . . . . . . . . . . . . . . . . . . . . . . Searches Triggered . | . . . . . . . . . . . . . . . . . . . . . . . . . . . . . . . . Construction Impeded 6 | . . . . . . . . 2 . . . . . . . 1 . . . . . . 1 . . . . . 2 . . Haulers Reinforced 9 | . . . . . . . . 1 . . . 2 . . . 1 . 1 . . . 2 . . . . . . 2 . . Active Scanning Responses . | . . . . . . . . . . . . . . . . . . . . . . . . . . . . . . . . Cargo Convoy Interrupts . | . . . . . . . . . . . . . . . . . . . . . . . . . . . . . . . . Alert ID Control Effect 230 | . . . . . . . . . . . . . 5 4 9 1 11 8 18 15 12 23 19 12 22 . 10 10 27 24 . Stealth | -11 -10 -10 -10 -9 -8 -8 -8 -7 -7 -7 -7 -6 -6 -6 -6 -5 -5 -5 -5 -4 -4 -3 -3 -3 -2 -2 -2 -2 -1 -1 -1 --------- Run | Jun Mat Min Exi Min Mat Sto Gar Fac Gar Fac Gar Fac Gar Fac Gar Fac Gar Fac Gar Fac Gar Res Tes Gar Res Qua Sec Gar Acc Com Ac0 Distress Signals 36 | . . . . . 5 3 . . . . . 1 . 1 . 2 . 1 . 2 . 1 1 . . . 2 . 1 16 . Communications Jammed 972 | . . . . . . . . . . . . 2 . 21 . 4 . 20 . . . 143 114 . 123 . 146 . 399 . . Distress Signals 958 | . . . . . . . . . . . . . . 21 . 4 . 20 . . . 143 113 . 123 . 145 . 389 . . Times Spotted 1473 | . 22 4 . 6 48 38 33 30 36 2 37 14 39 19 35 13 35 24 53 34 28 51 69 51 101 21 94 27 230 258 21 Peak Tracking Total 22 | . 4 1 . 3 4 7 4 4 4 1 11 8 6 5 9 4 6 5 6 6 4 6 7 9 15 4 12 3 17 22 4 Tactical Retreats 34 | . . . . . . 1 3 . . . 1 1 . . 1 . . 1 3 . . 1 2 1 1 . 2 . 10 6 . Traps | -11 -10 -10 -10 -9 -8 -8 -8 -7 -7 -7 -7 -6 -6 -6 -6 -5 -5 -5 -5 -4 -4 -3 -3 -3 -2 -2 -2 -2 -1 -1 -1 ------- Run | Jun Mat Min Exi Min Mat Sto Gar Fac Gar Fac Gar Fac Gar Fac Gar Fac Gar Fac Gar Fac Gar Res Tes Gar Res Qua Sec Gar Acc Com Ac0 Traps Triggered 75 | . 1 . . . . . 10 . 14 . 3 3 13 . 7 1 2 . 6 1 2 . . 6 1 . . 1 1 3 . Indirectly . | . . . . . . . . . . . . . . . . . . . . . . . . . . . . . . . . Trap Hack Attempts . | . . . . . . . . . . . . . . . . . . . . . . . . . . . . . . . . Triggered . | . . . . . . . . . . . . . . . . . . . . . . . . . . . . . . . . Disarmed . | . . . . . . . . . . . . . . . . . . . . . . . . . . . . . . . . Reprogrammed . | . . . . . . . . . . . . . . . . . . . . . . . . . . . . . . . . Reused . | . . . . . . . . . . . . . . . . . . . . . . . . . . . . . . . . Traps Extracted . | . . . . . . . . . . . . . . . . . . . . . . . . . . . . . . . . Installed . | . . . . . . . . . . . . . . . . . . . . . . . . . . . . . . . . Triggered . | . . . . . . . . . . . . . . . . . . . . . . . . . . . . . . . . Machines | -11 -10 -10 -10 -9 -8 -8 -8 -7 -7 -7 -7 -6 -6 -6 -6 -5 -5 -5 -5 -4 -4 -3 -3 -3 -2 -2 -2 -2 -1 -1 -1 ---------- Run | Jun Mat Min Exi Min Mat Sto Gar Fac Gar Fac Gar Fac Gar Fac Gar Fac Gar Fac Gar Fac Gar Res Tes Gar Res Qua Sec Gar Acc Com Ac0 Machines Disabled 214 | . . 2 . 1 4 2 7 5 6 . 5 5 8 4 8 7 5 13 7 3 6 13 22 6 7 14 23 6 15 10 . Max in Single Turn 2 | . . 2 . 1 1 1 1 . 2 . 1 . 1 . 1 1 1 . 1 . 1 1 1 1 1 1 1 1 1 2 . Garrison Access 6 | . . . . . . . . . . . . . . . . . . . . 1 . 1 . . 1 1 . . 2 . . Garrison Relay 46 | . . . . . . . 5 . 4 . 6 . 5 . 4 . 5 . 5 . 4 . . 4 . . . 4 . . . Phase Generator 3 | . . . . . . . . . 1 . . . . . 1 . . . . . . . . . . . . . . 1 . Machines Repaired . | . . . . . . . . . . . . . . . . . . . . . . . . . . . . . . . . Machines Sabotaged . | . . . . . . . . . . . . . . . . . . . . . . . . . . . . . . . . Overloaded Fab Kills . | . . . . . . . . . . . . . . . . . . . . . . . . . . . . . . . . Hacking | -11 -10 -10 -10 -9 -8 -8 -8 -7 -7 -7 -7 -6 -6 -6 -6 -5 -5 -5 -5 -4 -4 -3 -3 -3 -2 -2 -2 -2 -1 -1 -1 --------- Run | Jun Mat Min Exi Min Mat Sto Gar Fac Gar Fac Gar Fac Gar Fac Gar Fac Gar Fac Gar Fac Gar Res Tes Gar Res Qua Sec Gar Acc Com Ac0 Machines Accessed 162 | . 7 1 2 . 14 12 4 6 4 3 3 3 2 2 3 5 4 8 3 7 2 7 8 2 2 14 20 2 12 . . Terminals 117 | . 5 . . . 11 10 4 3 4 1 3 . 2 . 3 4 4 6 3 5 2 4 7 2 1 8 16 2 7 . . Fabricators 8 | . . . . . . . . 2 . 1 . 1 . . . . . 1 . . . 1 . . . . . . 2 . . Repair Stations 7 | . . . . . . 1 . . . . . . . 1 . . . . . . . 1 . . . 2 . . 2 . . Recycling Units 4 | . 2 . . . 2 . . . . . . . . . . . . . . . . . . . . . . . . . . Scanalyzers 8 | . . . . . 1 . . . . . . . . . . . . . . . . . . . . 3 3 . 1 . . Garrison Access 15 | . . . . . . 1 . 1 . 1 . 2 . 1 . 1 . 1 . 2 . 1 1 . 1 1 1 . . . . Total Hacks 366 | . 16 1 24 . 33 26 9 10 8 6 8 5 6 5 10 13 15 18 5 16 7 17 14 6 5 31 32 2 18 . . Successful 163 | . 10 1 24 . 14 17 2 3 3 4 1 5 . 5 1 5 6 7 2 6 2 9 5 1 3 11 9 2 5 . . Failed 202 | . 5 . . . 19 9 7 7 5 2 7 . 6 . 9 8 9 11 3 10 5 8 9 5 2 20 23 . 13 . . Catastrophic 72 | . . . . . 7 2 3 4 3 1 4 . . . 2 3 3 4 1 4 . 3 5 2 . 7 7 . 7 . . Database Lockouts 1 | . 1 . . . . . . . . . . . . . . . . . . . . . . . . . . . . . . Manual 158 | . 15 . 1 . 23 11 . 4 2 2 . . . 1 . 11 7 12 1 7 1 12 8 1 2 8 20 . 9 . . Terminals 264 | . 14 . . . 29 23 9 5 8 2 8 . 6 . 10 11 15 12 5 13 7 12 12 6 3 17 26 2 9 . . Fabricators 19 | . . . . . . . . 4 . 3 . 1 . . . . . 4 . . . 2 . . . . . . 5 . . Repair Stations 14 | . . . . . . 2 . . . . . . . 3 . . . . . . . 1 . . . 6 . . 2 . . Recycling Units 4 | . 2 . . . 2 . . . . . . . . . . . . . . . . . . . . . . . . . . Scanalyzers 14 | . . . . . 2 . . . . . . . . . . . . . . . . . . . . 6 4 . 2 . . Garrison Access 26 | . . . . . . 1 . 1 . 1 . 4 . 2 . 2 . 2 . 3 . 2 2 . 2 2 2 . . . . Terminal Hacks 88 | . 4 1 24 . 7 11 2 2 3 . 1 . . . 1 1 4 3 2 3 2 3 2 1 1 1 5 2 2 . . Record 23 | . . . 23 . . . . . . . . . . . . . . . . . . . . . . . . . . . . Part Schematic 2 | . 1 . . . . 1 . . . . . . . . . . . . . . . . . . . . . . . . . Robot Analysis 3 | . 2 . . . 1 . . . . . . . . . . . . . . . . . . . . . . . . . . Open Door 15 | . . 1 . . . 5 . . 1 . . . . . . . 1 . 1 . . . . . . 1 4 1 . . . Branch Access Points 6 | . . . . . 1 . . . . . . . . . . . . 1 . 1 . 1 . . 1 . . . 1 . . Emergency Access Points 6 | . . . . . . . 1 . 1 . . . . . . . 1 . . . 1 . . 1 . . . 1 . . . Terminal Index 3 | . . . . . . . . . . . . . . . . 1 . 1 . 1 . . . . . . . . . . . Alert Level 2 | . . . . . 1 1 . . . . . . . . . . . . . . . . . . . . . . . . . Unreport Threat 12 | . . . . . 1 4 . 2 . . . . . . . . . . . 1 . 1 1 . . . 1 . 1 . . Locate Traps 2 | . . . . . 2 . . . . . . . . . . . . . . . . . . . . . . . . . . Hauler Manifests 4 | . 1 . . . 1 . . . . . . . . . . . . 1 . . . 1 . . . . . . . . . Zone Layout 1 | . . . . . . . . . . . . . . . . . . . . . . . 1 . . . . . . . . Garrison Registry 3 | . . . . . . . . . . . 1 . . . . . 1 . . . 1 . . . . . . . . . . Patrol Navigation 2 | . . . . . . . . . . . . . . . 1 . 1 . . . . . . . . . . . . . . Security Stations 3 | . . . . . . . 1 . 1 . . . . . . . . . 1 . . . . . . . . . . . . EX-Prototype ID Bank 1 | . . . 1 . . . . . . . . . . . . . . . . . . . . . . . . . . . . Fabricator Hacks 8 | . . . . . . . . . . 3 . 1 . . . . . 1 . . . 1 . . . . . . 2 . . Network Status 3 | . . . . . . . . . . 1 . 1 . . . . . 1 . . . . . . . . . . . . . Load Schematic 3 | . . . . . . . . . . 1 . . . . . . . . . . . . . . . . . . 2 . . Build 2 | . . . . . . . . . . 1 . . . . . . . . . . . 1 . . . . . . . . . Repair Station Hacks 8 | . . . . . . 2 . . . . . . . 2 . . . . . . . . . . . 4 . . . . . Scan Component 5 | . . . . . . 1 . . . . . . . 1 . . . . . . . . . . . 3 . . . . . Repair 3 | . . . . . . 1 . . . . . . . 1 . . . . . . . . . . . 1 . . . . . Recycling Unit Hacks . | . . . . . . . . . . . . . . . . . . . . . . . . . . . . . . . . Scanalyzer 5 | . . . . . 2 . . . . . . . . . . . . . . . . . . . . 3 . . . . . Insert Component 4 | . . . . . 1 . . . . . . . . . . . . . . . . . . . . 3 . . . . . Analyze 1 | . . . . . 1 . . . . . . . . . . . . . . . . . . . . . . . . . . Garrison Access Hacks 26 | . . . . . . 1 . 1 . 1 . 4 . 2 . 2 . 2 . 3 . 2 2 . 2 2 2 . . . . Unlock Access 11 | . . . . . . 1 . 1 . 1 . 2 . 1 . 1 . 1 . 1 . . 1 . . . 1 . . . . Seal Access 4 | . . . . . . . . . . . . . . . . . . . . 1 . 1 . . 1 1 . . . . . Coupler Status 11 | . . . . . . . . . . . . 2 . 1 . 1 . 1 . 1 . 1 1 . 1 1 1 . . . . Unauthorized Hacks 28 | . 6 . . . 5 3 . . . . . . . 1 . 2 2 1 . . . 3 1 . . 1 2 . 1 . . Terminals 22 | . 4 . . . 3 3 . . . . . . . . . 2 2 . . . . 3 1 . . 1 2 . 1 . . Assimilate 1 | . 1 . . . . . . . . . . . . . . . . . . . . . . . . . . . . . . Botnet 15 | . 2 . . . 3 2 . . . . . . . . . 1 2 . . . . 2 . . . 1 1 . 1 . . Operators 6 | . 1 . . . . 1 . . . . . . . . . 1 . . . . . 1 1 . . . 1 . . . . Fabricators 1 | . . . . . . . . . . . . . . . . . . 1 . . . . . . . . . . . . . Haulers 1 | . . . . . . . . . . . . . . . . . . 1 . . . . . . . . . . . . . Repair Stations 1 | . . . . . . . . . . . . . . 1 . . . . . . . . . . . . . . . . . Mechanics 1 | . . . . . . . . . . . . . . 1 . . . . . . . . . . . . . . . . . Recycling Units 4 | . 2 . . . 2 . . . . . . . . . . . . . . . . . . . . . . . . . . Tunnel 4 | . 2 . . . 2 . . . . . . . . . . . . . . . . . . . . . . . . . . Scanalyzers . | . . . . . . . . . . . . . . . . . . . . . . . . . . . . . . . . Garrison Access . | . . . . . . . . . . . . . . . . . . . . . . . . . . . . . . . . Data Cores Recovered 1 | . . . . . . . . . . . . . . . . . . . . . . . . . 1 . . . . . . Used . | . . . . . . . . . . . . . . . . . . . . . . . . . . . . . . . . Hacking Detections 137 | . 5 . . . 12 9 4 5 4 2 3 2 2 2 3 5 4 6 2 6 2 6 8 2 2 12 16 1 12 . . Full Trace Events 22 | . . . . . . . 3 . 3 1 2 . 2 1 2 . 1 1 . . . . . 1 . 2 1 . 2 . . Feedback Events 1 | . . . . . . . . . . . . . . . . . . . . . . . . . . 1 . . . . . Corruption 1 | . . . . . . . . . . . . . . . . . . . . . . . . . . 1 . . . . . Feedback Blocked . | . . . . . . . . . . . . . . . . . . . . . . . . . . . . . . . . Robot Schematics Acquired 7 | . . . . . . . . . . . . . . . . . . . . . . . 4 . . 2 1 . . . . Robots Built . | . . . . . . . . . . . . . . . . . . . . . . . . . . . . . . . . Authchips . | . . . . . . . . . . . . . . . . . . . . . . . . . . . . . . . . Time . | . . . . . . . . . . . . . . . . . . . . . . . . . . . . . . . . Total Robot Build Rating . | . . . . . . . . . . . . . . . . . . . . . . . . . . . . . . . . Part Schematics Acquired 30 | . 1 . . . 1 1 . . . . . . . . . . . . . . . . 11 . . 9 7 . . . . Parts Built 3 | . . . . . . . . . . 1 . . . . . . . . . . . 2 . . . . . . . . . Authchips . | . . . . . . . . . . . . . . . . . . . . . . . . . . . . . . . . Time 97 | . . . . . . . . . . 51 . . . . . . . . . . . 46 . . . . . . . . . Total Part Build Rating 19 | . . . . . . . . . . 1 . . . . . . . . . . . 18 . . . . . . . . . Parts Repaired 3 | . . . . . . 1 . . . . . . . 1 . . . . . . . . . . . 1 . . . . . Time 208 | . . . . . . 38 . . . . . . . 62 . . . . . . . . . . . 108 . . . . . Parts Recycled . | . . . . . . . . . . . . . . . . . . . . . . . . . . . . . . . . Recycled Matter . | . . . . . . . . . . . . . . . . . . . . . . . . . . . . . . . . Retrieved Matter . | . . . . . . . . . . . . . . . . . . . . . . . . . . . . . . . . Retrieved Components . | . . . . . . . . . . . . . . . . . . . . . . . . . . . . . . . . Parts Scanalyzed 1 | . . . . . 1 . . . . . . . . . . . . . . . . . . . . . . . . . . Part Schematics Acquired 1 | . . . . . 1 . . . . . . . . . . . . . . . . . . . . . . . . . . Parts Damaged . | . . . . . . . . . . . . . . . . . . . . . . . . . . . . . . . . Bothacking | -11 -10 -10 -10 -9 -8 -8 -8 -7 -7 -7 -7 -6 -6 -6 -6 -5 -5 -5 -5 -4 -4 -3 -3 -3 -2 -2 -2 -2 -1 -1 -1 ------------ Run | Jun Mat Min Exi Min Mat Sto Gar Fac Gar Fac Gar Fac Gar Fac Gar Fac Gar Fac Gar Fac Gar Res Tes Gar Res Qua Sec Gar Acc Com Ac0 Used RIF Installer 16 | . . . . . . . 2 . 2 . 1 . 2 . 1 . 2 . 1 . 2 . . 2 . . . 1 . . . Coupler Efficiency 3 | . . . . . . . . . 2 . . . 1 . . . . . . . . . . . . . . . . . . Hotswap 1 | . . . . . . . . . . . . . . . 1 . . . . . . . . . . . . . . . . Threat Obfuscator 1 | . . . . . . . 1 . . . . . . . . . . . . . . . . . . . . . . . . Signal Jammer 1 | . . . . . . . . . . . 1 . . . . . . . . . . . . . . . . . . . . Zone Cloak 1 | . . . . . . . . . . . . . . . . . . . . . 1 . . . . . . . . . . Robot Detection 1 | . . . . . . . . . . . . . . . . . . . . . . . . 1 . . . . . . . Watcher Feeds 1 | . . . . . . . . . . . . . . . . . . . . . 1 . . . . . . . . . . Patrol Navigation 1 | . . . . . . . . . . . . . . . . . 1 . . . . . . . . . . . . . . Alert ID Control 1 | . . . . . . . . . . . . . 1 . . . . . . . . . . . . . . . . . . Autooverride 2 | . . . . . . . . . . . . . . . . . 1 . 1 . . . . . . . . . . . . Autoassimilate 1 | . . . . . . . . . . . . . . . . . . . . . . . . . . . . 1 . . . Crosswire 1 | . . . . . . . . . . . . . . . . . . . . . . . . 1 . . . . . . . Robots Hacked 578 | . . . . . . . . 14 12 3 20 7 10 17 16 6 23 18 19 25 23 31 32 22 35 8 40 16 96 85 . Non-combat 68 | . . . . . . . . 3 . 3 . . . 6 . 2 . 7 . 7 . 8 6 . 8 . 5 . 13 . . Combat 510 | . . . . . . . . 11 12 . 20 7 10 11 16 4 23 11 19 18 23 23 26 22 27 8 35 16 83 85 . Autooverrided 149 | . . . . . . . . . . . . . . . . . 2 4 4 11 10 9 5 4 12 2 12 4 36 34 . Autoassimilated 54 | . . . . . . . . . . . . . . . . . . . . . . . . . . . . 1 27 26 . Robot Hacks Applied 433 | . . . . . . . . 16 12 3 21 7 10 19 16 12 21 18 17 21 13 24 33 19 26 10 36 11 35 33 . parse_system 19 | . . . . . . . . . . . 1 1 . . 1 . . 1 . . . . 2 . 1 4 2 . 1 5 . ignore_repairs 5 | . . . . . . . . . . . . . . 1 . . . . . . . . . . 3 . 1 . . . . map_walls 1 | . . . . . . . . . . . . . . . . . . . . . . . . . . . 1 . . . . find_fabricator 4 | . . . . . . . . . . . . . . 1 . 1 . . . 1 . . . . 1 . . . . . . drop_inventory 17 | . . . . . . . . 1 . 1 . . . . . 1 . 1 . 2 . 3 2 . 1 . 1 . 4 . . ignore_parts 3 | . . . . . . . . . . 2 . . . . . . . . . . . 1 . . . . . . . . . purge_threat 21 | . . . . . . . . . . . . . . . . 4 . 4 . 5 . . 4 . . . 4 . . . . find_terminals 1 | . . . . . . . . . . . . . . . . 1 . . . . . . . . . . . . . . . block_reporting 1 | . . . . . . . . . . . . . . . . . . . . 1 . . . . . . . . . . . map_route 19 | . . . . . . . . 2 . . . . . 3 . . . 2 . 1 . 3 1 . . . . . 7 . . disable_scanner 10 | . . . . . . . . . . . . . . . . . . . . . . . 7 . . . 3 . . . . find_garrison 5 | . . . . . . . . 2 . . . . . 1 . . . . . 1 . . . . . . 1 . . . . link_complan 2 | . . . . . . . . . . . . . . . . . . . . . . . . . . . 2 . . . . broadcast_data 1 | . . . . . . . . . . . 1 . . . . . . . . . . . . . . . . . . . . spike_heat 1 | . . . . . . . . . 1 . . . . . . . . . . . . . . . . . . . . . . amplify_resonance 40 | . . . . . . . . 1 1 . 1 . 1 2 4 . 1 . . 2 1 4 1 1 7 . 5 . 6 2 . wipe_record 2 | . . . . . . . . . . . . . . 1 1 . . . . . . . . . . . . . . . . reboot_system 5 | . . . . . . . . 2 1 . 1 . . . . . . . . 1 . . . . . . . . . . . overwrite_iff 75 | . . . . . . . . 2 1 . 2 . 1 1 1 . 8 4 2 1 3 5 2 5 7 1 5 4 9 11 . formatsys_low 18 | . . . . . . . . . . . . . . 1 . 1 . 2 . 2 . 2 3 . 1 . 4 . 2 . . formatsys_high 180 | . . . . . . . . 6 8 . 15 6 8 8 9 4 12 4 15 4 9 6 11 13 4 5 7 7 4 15 . formatsys_deep 3 | . . . . . . . . . . . . . . . . . . . . . . . . . 1 . . . 2 . . Relay Couplers Released 205 | . . . . . . . 22 . 16 . 23 4 19 . 17 . 21 . 17 . 16 . . 14 . 15 . 16 5 . . Machine Destruction 183 | . . . . . . . 22 . 16 . 23 . 19 . 17 . 21 . 17 . 16 . . 14 . . . 16 2 . . Programmers 22 | . . . . . . . . . . . . 4 . . . . . . . . . . . . . 15 . . 3 . . Attached 100 | . . . . . . . . 8 8 1 8 2 4 3 6 2 7 2 7 2 4 4 1 9 4 3 2 4 3 6 . Crosswired 18 | . . . . . . . . . . . . . . . . . . . . . . . . 6 . 5 . 7 . . . Fabnet Peak Effective % . | . . . . . . . . . . . . . . . . . . . . . . . . . . . . . . . . Robots Rewired 32 | . . . . . . . 6 . 5 . 9 . 1 . 2 . . . . . . . . 9 . . . . . . . Allies Hacked 15 | . . . . . . . . . . . . . . 2 . . . . . 1 1 1 3 . 1 . . . 2 4 . Hacks Repelled . | . . . . . . . . . . . . . . . . . . . . . . . . . . . . . . . . Allies | -11 -10 -10 -10 -9 -8 -8 -8 -7 -7 -7 -7 -6 -6 -6 -6 -5 -5 -5 -5 -4 -4 -3 -3 -3 -2 -2 -2 -2 -1 -1 -1 -------- Run | Jun Mat Min Exi Min Mat Sto Gar Fac Gar Fac Gar Fac Gar Fac Gar Fac Gar Fac Gar Fac Gar Res Tes Gar Res Qua Sec Gar Acc Com Ac0 Total Allies 545 | . 2 5 . . . 12 6 8 14 . 26 6 10 9 14 5 24 14 23 18 24 21 21 31 27 8 26 20 88 83 . Largest Group 22 | . 1 6 6 4 1 11 7 4 10 10 20 20 14 5 12 9 8 10 16 20 13 11 7 11 8 6 8 12 13 22 1 Highest-Rated Group 1990 | . 64 148 148 110 86 259 157 143 379 379 625 629 503 272 618 530 486 535 736 915 702 648 629 795 725 930 1178 957 943 1990 275 Highest-Rated Ally 343 | . 64 70 70 70 86 88 88 95 99 99 106 119 139 139 141 149 152 152 167 184 184 200 202 205 221 343 343 239 257 277 275 Total Orders 273 | . . . . . . . . . 4 6 15 4 6 6 26 7 25 5 36 7 21 16 9 8 6 17 11 6 2 30 . STAY 130 | . . . . . . . . . 2 3 10 3 3 2 13 2 10 . 19 1 10 7 3 6 2 9 4 2 . 19 . ROAM 3 | . . . . . . . . . . . . . . . . . 3 . . . . . . . . . . . . . . FOLLOW 117 | . . . . . . . . . 2 3 5 1 3 3 13 5 12 2 12 2 11 7 3 2 3 8 5 4 . 11 . AID 23 | . . . . . . . . . . . . . . 1 . . . 3 5 4 . 2 3 . 1 . 2 . 2 . . Ally Attacks 4014 | . 29 4 . 25 75 157 112 74 84 42 135 104 117 64 87 72 110 116 185 163 74 157 157 175 197 60 212 91 498 590 48 Total Damage 182993 | . 646 34 . 377 1927 3018 1641 2321 2444 586 3131 3723 4587 1724 2684 2817 2735 4921 4415 5593 2532 11725 11845 10502 11268 3584 12056 4591 29618 33400 2548 Kills 974 | . 16 2 . 4 22 34 24 13 23 6 28 24 30 11 28 17 26 32 36 37 22 70 57 49 52 10 59 25 134 82 1 Allies Corrupted 25 | . . . . . . . . . 1 . 2 1 . 1 . 1 . 1 . 1 . 2 3 . 2 . 1 . 3 6 . Allies Melted 5 | . . . . . . . . . 1 . . . . . . . . . . . . 1 . 2 . . . 1 . . . Intel | -11 -10 -10 -10 -9 -8 -8 -8 -7 -7 -7 -7 -6 -6 -6 -6 -5 -5 -5 -5 -4 -4 -3 -3 -3 -2 -2 -2 -2 -1 -1 -1 ------- Run | Jun Mat Min Exi Min Mat Sto Gar Fac Gar Fac Gar Fac Gar Fac Gar Fac Gar Fac Gar Fac Gar Res Tes Gar Res Qua Sec Gar Acc Com Ac0 Robot Analysis Total 3 | . 2 . . . 1 . . . . . . . . . . . . . . . . . . . . . . . . . . Derelict Logs Recovered 3 | . . 1 . 2 . . . . . . . . . . . . . . . . . . . . . . . . . . . Drone Launches . | . . . . . . . . . . . . . . . . . . . . . . . . . . . . . . . . Drone Recoveries . | . . . . . . . . . . . . . . . . . . . . . . . . . . . . . . . . Exploration | -11 -10 -10 -10 -9 -8 -8 -8 -7 -7 -7 -7 -6 -6 -6 -6 -5 -5 -5 -5 -4 -4 -3 -3 -3 -2 -2 -2 -2 -1 -1 -1 ------------- Run | Jun Mat Min Exi Min Mat Sto Gar Fac Gar Fac Gar Fac Gar Fac Gar Fac Gar Fac Gar Fac Gar Res Tes Gar Res Qua Sec Gar Acc Com Ac0 Turns Passed 87228 | 243 2265 2104 1108 1757 4006 2541 3061 1580 2976 507 1902 981 2770 951 2588 1058 1458 1063 2215 868 1003 963 1847 2696 1087 9648 3124 1824 3289 23436 309 Spaces Moved 35705 | 91 722 645 340 545 1420 914 1128 568 1258 183 896 411 1007 340 976 443 730 568 1176 504 516 513 928 1226 493 4584 1646 971 1158 8720 85 Core 10 | 3 . . . . . . . . . . . . . . . . . . . . . . . . . . . . . . 7 Treads 35695 | 88 722 645 340 545 1420 914 1128 568 1258 183 896 411 1007 340 976 443 730 568 1176 504 516 513 928 1226 493 4584 1646 971 1158 8720 78 Legs . | . . . . . . . . . . . . . . . . . . . . . . . . . . . . . . . . Wheels . | . . . . . . . . . . . . . . . . . . . . . . . . . . . . . . . . Hover . | . . . . . . . . . . . . . . . . . . . . . . . . . . . . . . . . Flight . | . . . . . . . . . . . . . . . . . . . . . . . . . . . . . . . . Fastest Speed 50 | 50 160 320 320 320 240 240 240 247 150 150 150 230 230 240 240 163 163 160 150 150 150 156 160 155 160 160 160 160 160 143 50 Average Speed 207 | 156 267 320 320 320 240 240 240 247 217 150 166 230 238 244 241 211 163 166 158 150 153 158 164 177 160 160 160 160 227 234 146 Slowest Speed 320 | 160 320 320 320 320 240 240 247 247 247 150 230 230 240 320 245 245 163 240 240 150 156 243 250 250 160 250 160 246 249 250 155 Overloaded Moves . | . . . . . . . . . . . . . . . . . . . . . . . . . . . . . . . . Propulsion Burnouts . | . . . . . . . . . . . . . . . . . . . . . . . . . . . . . . . . Robots Hopped 4 | . . . . . . . . . . . . . . . . . . . 2 . . . . . . . 1 . 1 . . Cave-ins Triggered . | . . . . . . . . . . . . . . . . . . . . . . . . . . . . . . . . Teleports 3 | . . . . . . . . . . . . . . . . . . . . . . . . . . . 1 . . 1 1 Exploration Rate (%) 63 | 4 98 99 63 91 96 95 96 19 97 4 83 12 94 9 94 15 88 14 97 17 68 24 95 96 27 98 86 99 41 95 11 Regions Visited 31 Branch Regions 9 Pre-discovered Areas 6 | . 2 . 1 1 2 . . . . . . . . . . . . . . . . . . . . . . . . . . Known Exits Taken 14 | . . . . . 1 1 . 1 . 1 . 1 . 1 . 1 . 1 . 1 . 1 1 . 1 . 1 . 1 . . Unknown Exits Taken 7 | 1 1 1 1 1 . . . . . . . . . . . . . . . . . . . . . 1 . . . 1 . Scrap Searched 1 | . . . . 1 . . . . . . . . . . . . . . . . . . . . . . . . . . . Spaces Dug 428 | . . . . . 1 4 32 3 18 . 11 1 47 7 22 9 19 15 47 2 10 4 5 33 22 11 30 27 23 25 . Terrain Destroyed 1115 | . . 13 . 1 8 20 53 9 115 . 11 2 55 10 115 13 20 28 48 12 20 14 18 48 34 30 51 37 51 146 133 Melee 88 | . . . . . . . . 2 . . . . 10 . 3 2 19 3 22 1 . . . . . . . . 12 14 . Projectile 513 | . . . . . 8 20 35 7 12 . 11 2 31 10 31 11 1 13 2 11 20 14 18 48 34 30 51 37 23 23 10 AOE 462 | . . 13 . 1 . . 18 . 103 . . . 14 . 81 . . 12 24 . . . . . . . . . . 75 121 Terrain Rammed . | . . . . . . . . . . . . . . . . . . . . . . . . . . . . . . . . Walls Destroyed . | . . . . . . . . . . . . . . . . . . . . . . . . . . . . . . . . Machines Disabled . | . . . . . . . . . . . . . . . . . . . . . . . . . . . . . . . . Actions | -11 -10 -10 -10 -9 -8 -8 -8 -7 -7 -7 -7 -6 -6 -6 -6 -5 -5 -5 -5 -4 -4 -3 -3 -3 -2 -2 -2 -2 -1 -1 -1 --------- Run | Jun Mat Min Exi Min Mat Sto Gar Fac Gar Fac Gar Fac Gar Fac Gar Fac Gar Fac Gar Fac Gar Res Tes Gar Res Qua Sec Gar Acc Com Ac0 Total 46004 | 143 986 681 368 552 1899 1164 1377 679 1445 414 1231 438 1253 436 1137 529 906 649 1440 593 657 611 1176 1601 709 6676 1994 1192 1636 11228 204 Wait 5265 | 8 182 30 8 . 323 132 26 25 10 218 123 7 45 30 10 17 35 16 90 18 44 18 78 143 74 1751 124 56 74 1533 17 Move 35670 | 90 721 644 339 544 1419 914 1127 568 1257 182 895 410 1006 340 975 442 729 567 1172 503 515 512 928 1225 492 4583 1643 970 1155 8719 84 Hop 3 | . . . . . . . . . . . . . . . . . . . 1 . . . . . . . 1 . 1 . . Pick Up 430 | 7 26 2 7 . 28 2 24 5 26 1 46 1 23 1 16 2 13 2 18 8 11 3 13 12 2 21 19 15 11 61 4 Fast Attach 240 | 7 1 . . . 5 12 1 2 11 2 3 1 12 1 7 10 4 3 9 4 . 4 14 16 2 19 6 8 16 58 2 Attach 222 | . . . 1 . 14 3 10 3 12 1 7 3 6 1 6 . 5 . 9 4 3 2 2 3 3 17 11 9 16 64 7 Detach 168 | . 1 . 1 . 2 1 5 1 6 1 6 . 4 . 3 . 4 . 8 2 1 1 2 5 1 21 1 10 13 65 3 Swap 338 | . 3 2 1 3 7 9 11 14 8 1 7 . 18 5 7 3 16 9 19 3 12 2 12 24 4 15 17 2 37 50 17 Drop 531 | 2 10 . 11 1 29 21 27 4 26 3 35 1 28 1 19 8 12 3 24 8 7 2 26 24 4 30 17 17 16 108 7 Fire 2666 | 29 40 2 . 2 70 56 76 53 64 4 89 15 66 54 70 34 49 45 51 42 64 66 90 133 120 219 152 103 276 469 63 Melee 263 | . . . . . . 1 . 2 2 . 9 . 31 . 14 3 39 3 39 1 . . 6 15 . . . . 14 84 . Ram . | . . . . . . . . . . . . . . . . . . . . . . . . . . . . . . . . Kick . | . . . . . . . . . . . . . . . . . . . . . . . . . . . . . . . . Crush 49 | . 2 1 . 2 2 11 . 2 . 1 . . . 3 . 10 . 1 . . . 1 5 . 1 . 3 . 1 3 . Escape Stasis 101 | . . . . . . 2 18 . 23 . 6 . 14 . 10 . . . . . . . . . 6 . . 2 6 14 . Rewire 58 | . . . . . . . 52 . . . 5 . . . . . . . . . . . . 1 . . . . . . . Trap . | . . . . . . . . . . . . . . . . . . . . . . . . . . . . . . . . Miscellaneous . | . . . . . . . . . . . . . . . . . . . . . . . . . . . . . . . . Route ------- -11/Junkyard -10/Materials (discovered 4 exits: [*Mat x3] / *Min) -10/Mines (discovered 3 exits: [*Mat x2] / *Exi) -10/Exiles -9/Mines -8/Materials (discovered 5 exits: *Fac x3 / *Sto x2) -8/Storage (discovered 2 exits: *Fac / Gar) -8/Garrison (discovered 3 exits: *Fac x3) -7/Factory (discovered 3 exits: *Fac x2 / Gar) -7/Garrison (discovered 4 exits: *Fac x3 / *Fac) -7/Factory -7/Garrison (discovered 3 exits: *Fac x3) -6/Factory (discovered 2 exits: Gar / Gar) -6/Garrison (discovered 3 exits: *Fac x3) -6/Factory (discovered 2 exits: *Fac / Gar) -6/Garrison (discovered 3 exits: *Fac x3) -5/Factory (discovered 2 exits: *Upp / Gar) -5/Garrison (discovered 3 exits: *Fac x3) -5/Factory (discovered 3 exits: *Upp x2 / Gar) -5/Garrison (discovered 3 exits: *Fac x3) -4/Factory (discovered 4 exits: Upp x2 / Arm / Gar) -4/Garrison (discovered 3 exits: *Res x3) -3/Research (discovered 3 exits: *Res / *Tes x2) -3/Testing (discovered 2 exits: *Res / Gar) -3/Garrison (discovered 3 exits: *Res x3) -2/Research (discovered 2 exits: *Qua x2) -2/Quarantine (discovered 2 exits: *Acc / *Sec) -2/Section 7 (discovered 2 exits: *Acc / Gar) -2/Garrison (discovered 3 exits: *Acc x3) -1/Access -1/Command (discovered 3 exits: [*Sur x2] / [*Ac0]) -1/Access_0 Near Former Tau Ceti IV History --------- Turn | Location | Event 14 | -11/Junkyard | Discovered new exit (range 16) 244 | -11/Junkyard | Entered Materials 305 | -10/Materials | Build established: Mutant 331 | -10/Materials | Discovered new exit (range 15) 1137 | -10/Materials | Discovered new exit (range 16) 2015 | -10/Materials | Discovered new exit (range 5) 2275 | -10/Materials | Discovered new exit (range 4) 2304 | -10/Materials | Central database locked down 2509 | -10/Materials | Entered Mines 2533 | -10/Mines | Met a Derelict bent on vengeance 2794 | -10/Mines | Discovered new exit (range 9) 2837 | -10/Mines | Met a Derelict shopkeep closing up shop 2960 | -10/Mines | Assembled infested the area 2965 | -10/Mines | Assisted by a Guerilla fighting off Assembled 3394 | -10/Mines | Learned Materials garrison access intel 3802 | -10/Mines | Deemed a non-threat by the Exiles lab entrance 3802 | -10/Mines | Discovered new exit (range 5) 4071 | -10/Mines | Discovered new exit (range 16) 4480 | -10/Mines | Assisted by bots powering up and referring to "LRC-V3" 4613 | -10/Mines | Entered Exiles 4613 | -10/Exiles | Accompanied by 5 allies 4643 | -10/Exiles | Led the pair of lost Derelicts to a safe place 4690 | -10/Exiles | Met 8R-AWN 4741 | -10/Exiles | Met EX-HEX 4885 | -10/Exiles | Learned location of Zion (-7) 5068 | -10/Exiles | Met EX-DEC 5152 | -10/Exiles | Met EX-BIN 5190 | -10/Exiles | Aligned with FarCom system 5193 | -10/Exiles | Given EX-Vault access code 5276 | -10/Exiles | Opened EX-Vault 5332 | -10/Exiles | Found Firepult 5376 | -10/Exiles | Found Deploy-a-Sentry 5380 | -10/Exiles | Found Deploy-a-Sentry 5384 | -10/Exiles | Found Deploy-a-Sentry 5397 | -10/Exiles | Found Flying Fortress v7 5468 | -10/Exiles | Warned to stay clear of 0b10 Research branches 5673 | -10/Exiles | Discovered new exit (range 14) 5721 | -10/Exiles | Stole three prototypes: Flying Fortress v7, Firepult, Deploy-a-Sentry 5721 | -10/Exiles | Entered Mines 5721 | -9/Mines | Accompanied by 3 allies 5949 | -9/Mines | Learned location of 1 exit from Lower Caves 6560 | -9/Mines | Learned location of Storage (-8) 7072 | -9/Mines | Discovered new exit (range 8) 7478 | -9/Mines | Entered Materials 7478 | -8/Materials | Evolved 4 slots: Propulsion x2, Utility x2 9070 | -8/Materials | Discovered new exit (range 4) 9364 | -8/Materials | Build established: Scavenger-Mutant 9793 | -8/Materials | Discovered new exit (range 13) 9921 | -8/Materials | Discovered new exit (range 5) 10171 | -8/Materials | Discovered new exit (range 10) 10314 | -8/Materials | Identified exit to Storage 10560 | -8/Materials | Discovered new exit (range 7) 10948 | -8/Materials | Build established: Mutant 11478 | -8/Materials | First assault squad dispatched 11484 | -8/Materials | Entered Storage 11514 | -8/Storage | Met a pair of Derelict thieves 11871 | -8/Storage | Core integrity fell below 50% 11936 | -8/Storage | Assisted by bots powering up and referring to "LRC-V3" 12029 | -8/Storage | Garrison activated, responded to threat 12239 | -8/Storage | Build established: Commander-Mutant 12610 | -8/Storage | Build established: Scavenger-Mutant 13335 | -8/Storage | Repaired Hvy. Assault Cannon 13824 | -8/Storage | Discovered new exit (range 15) 14017 | -8/Storage | Identified exit to Garrison 14025 | -8/Storage | Entered Garrison 14036 | -8/Garrison | Triggered checkpoint 14074 | -8/Garrison | Triggered checkpoint 14076 | -8/Garrison | Triggered checkpoint 14368 | -8/Garrison | Garrison Relay disabled 14570 | -8/Garrison | Garrison Relay disabled 14650 | -8/Garrison | Triggered checkpoint 14658 | -8/Garrison | Triggered checkpoint 14766 | -8/Garrison | Triggered checkpoint 14828 | -8/Garrison | Triggered checkpoint 14851 | -8/Garrison | Core integrity fell below 20% 14982 | -8/Garrison | Installed Relay Interface Framework 15039 | -8/Garrison | Learned Factory security intel 15140 | -8/Garrison | Discovered new exit (range 14) 15575 | -8/Garrison | Discovered new exit (range 10) 15650 | -8/Garrison | Triggered checkpoint 16018 | -8/Garrison | Garrison Relay disabled 16096 | -8/Garrison | Triggered checkpoint 16179 | -8/Garrison | Expanded RIF knowledge: Threat Obfuscation 16212 | -8/Garrison | Garrison Relay disabled 16261 | -8/Garrison | Discovered new exit (range 10) 16703 | -8/Garrison | Build established: Bothacker-Mutant 16963 | -8/Garrison | Garrison Relay disabled 17086 | -8/Garrison | Entered Factory 17086 | -7/Factory | Evolved 2 slots: Utility x1, Weapon x1 17088 | -7/Factory | FarCom data flow suspended 17329 | -7/Factory | Discovered new exit (range 62) 17329 | -7/Factory | Discovered new exit (range 79) 18612 | -7/Factory | Garrison activated, responded to threat 18666 | -7/Factory | Identified exit to Garrison 18666 | -7/Factory | Entered Garrison 18666 | -7/Garrison | Accompanied by 3 allies 18744 | -7/Garrison | Triggered checkpoint 18817 | -7/Garrison | Phase Generator disabled 19152 | -7/Garrison | Garrison Relay disabled 19510 | -7/Garrison | Triggered checkpoint 19522 | -7/Garrison | Triggered checkpoint 19608 | -7/Garrison | Discovered new exit (range 10) 19764 | -7/Garrison | Garrison Relay disabled 20014 | -7/Garrison | Discovered new exit (range 10) 20072 | -7/Garrison | Triggered checkpoint 20102 | -7/Garrison | Garrison Relay disabled 20139 | -7/Garrison | Expanded RIF knowledge: Coupler Efficiency 20244 | -7/Garrison | Expanded RIF knowledge: Coupler Efficiency 20486 | -7/Garrison | Triggered checkpoint 20498 | -7/Garrison | Discovered new exit (range 5) 20513 | -7/Garrison | Build established: Botlord-Mutant 20553 | -7/Garrison | Discovered new exit (range 14) 20680 | -7/Garrison | Triggered checkpoint 20711 | -7/Garrison | Garrison Relay disabled 20839 | -7/Garrison | Learned Factory security intel 21642 | -7/Garrison | Entered Factory 21642 | -7/Factory | Accompanied by 9 allies 21665 | -7/Factory | Garrison activated, responded to threat 21705 | -7/Factory | Fabricated Cargo Storage Unit? 21888 | -7/Factory | Identified exit to Garrison 22149 | -7/Factory | Entered Garrison 22149 | -7/Garrison | Accompanied by 8 allies 22162 | -7/Garrison | Triggered checkpoint 22208 | -7/Garrison | Triggered checkpoint 22216 | -7/Garrison | Garrison Relay disabled 22358 | -7/Garrison | Discovered new exit (range 64) 22358 | -7/Garrison | Discovered new exit (range 72) 22358 | -7/Garrison | Discovered new exit (range 32) 22470 | -7/Garrison | Triggered checkpoint 22516 | -7/Garrison | Triggered checkpoint 22564 | -7/Garrison | Triggered checkpoint 22605 | -7/Garrison | Expanded RIF knowledge: Signal Jamming 22628 | -7/Garrison | Garrison Relay disabled 22699 | -7/Garrison | Garrison Relay disabled 22812 | -7/Garrison | Triggered checkpoint 22827 | -7/Garrison | Garrison Relay disabled 22870 | -7/Garrison | Triggered checkpoint 22890 | -7/Garrison | Triggered checkpoint 22978 | -7/Garrison | Garrison Relay disabled 23098 | -7/Garrison | Core integrity fell below 50% 23868 | -7/Garrison | Garrison Relay disabled 24051 | -7/Garrison | Entered Factory 24051 | -6/Factory | Accompanied by 19 allies 24051 | -6/Factory | Evolved 2 slots: Utility x2 24074 | -6/Factory | Identified exit to Garrison 24199 | -6/Factory | Identified exit to Garrison 24305 | -6/Factory | Garrison activated, responded to threat 24751 | -6/Factory | First assault squad dispatched 25032 | -6/Factory | Entered Garrison 25032 | -6/Garrison | Accompanied by 12 allies 25186 | -6/Garrison | Triggered checkpoint 25192 | -6/Garrison | Garrison Relay disabled 25294 | -6/Garrison | Spotted B-86 Titan 25298 | -6/Garrison | Spotted B-86 Titan 25312 | -6/Garrison | Allies destroyed B-86 Titan 25316 | -6/Garrison | Allies destroyed B-86 Titan 25337 | -6/Garrison | Rewired B-75 Beast 25368 | -6/Garrison | Found Hvy. Reflective Plating 25533 | -6/Garrison | Triggered checkpoint 25537 | -6/Garrison | Triggered checkpoint 25544 | -6/Garrison | Spotted B-75 Beast 25669 | -6/Garrison | Discovered new exit (range 10) 25718 | -6/Garrison | Triggered checkpoint 25748 | -6/Garrison | Garrison Relay disabled 25846 | -6/Garrison | Expanded RIF knowledge: Alert ID Control 25929 | -6/Garrison | Found Enh. Force Lance 25970 | -6/Garrison | Spotted B-75 Beast 25976 | -6/Garrison | Allies destroyed B-75 Beast 26241 | -6/Garrison | Triggered checkpoint 26242 | -6/Garrison | Triggered checkpoint 26546 | -6/Garrison | Triggered checkpoint 26557 | -6/Garrison | Garrison Relay disabled 26690 | -6/Garrison | Discovered new exit (range 15) 26696 | -6/Garrison | Triggered checkpoint 26741 | -6/Garrison | Spotted B-75 Beast 26772 | -6/Garrison | Allies destroyed B-75 Beast 26961 | -6/Garrison | Expanded RIF knowledge: Coupler Efficiency 27127 | -6/Garrison | Garrison Relay disabled 27172 | -6/Garrison | Discovered new exit (range 6) 27206 | -6/Garrison | Triggered checkpoint 27299 | -6/Garrison | Garrison Relay disabled 27715 | -6/Garrison | Found Relay Coupler [Proto] 27721 | -6/Garrison | Found Relay Coupler [Proto] 27725 | -6/Garrison | Found Relay Coupler [Proto] 27731 | -6/Garrison | Found Relay Coupler [Proto] 27802 | -6/Garrison | Entered Factory 27802 | -6/Factory | Accompanied by 1 ally 27853 | -6/Factory | Discovered new exit (range 15) 28039 | -6/Factory | Repaired Imp. Heavy Treads? 28502 | -6/Factory | First assault squad dispatched 28645 | -6/Factory | Garrison activated, responded to threat 28743 | -6/Factory | Identified exit to Garrison 28753 | -6/Factory | Entered Garrison 28753 | -6/Garrison | Accompanied by 3 allies 28870 | -6/Garrison | Triggered checkpoint 28948 | -6/Garrison | Core integrity fell below 50% 29022 | -6/Garrison | Triggered checkpoint 29059 | -6/Garrison | Garrison Relay disabled 29246 | -6/Garrison | Phase Generator disabled 29362 | -6/Garrison | Rescued a captive Derelict 29362 | -6/Garrison | Rescued a captive Derelict 29506 | -6/Garrison | Triggered checkpoint 29556 | -6/Garrison | Triggered checkpoint 29626 | -6/Garrison | Triggered checkpoint 29641 | -6/Garrison | Garrison Relay disabled 29786 | -6/Garrison | Discovered new exit (range 10) 30086 | -6/Garrison | Triggered checkpoint 30115 | -6/Garrison | Garrison Relay disabled 30198 | -6/Garrison | Discovered new exit (range 10) 30236 | -6/Garrison | Spotted B-75 Beast 30243 | -6/Garrison | Spotted B-86 Titan 30244 | -6/Garrison | Allies destroyed B-75 Beast 30248 | -6/Garrison | Allies destroyed B-86 Titan 30270 | -6/Garrison | Rewired B-86 Titan 30271 | -6/Garrison | Rewired B-75 Beast 30746 | -6/Garrison | Garrison Relay disabled 30754 | -6/Garrison | Triggered checkpoint 30784 | -6/Garrison | Discovered new exit (range 11) 30909 | -6/Garrison | Expanded RIF knowledge: Hotswap 31341 | -6/Garrison | Entered Factory 31341 | -5/Factory | Accompanied by 7 allies 31341 | -5/Factory | Evolved 2 slots: Propulsion x2 31344 | -5/Factory | Discovered new exit (range 7) 32134 | -5/Factory | P-70 Sage assimilated allied Soldier 5k 32170 | -5/Factory | Garrison activated, responded to threat 32380 | -5/Factory | Identified exit to Garrison 32399 | -5/Factory | Entered Garrison 32399 | -5/Garrison | Accompanied by 5 allies 32492 | -5/Garrison | Garrison Relay disabled 32514 | -5/Garrison | Triggered checkpoint 32573 | -5/Garrison | Expanded RIF knowledge: Patrol Navigation 32729 | -5/Garrison | Spotted B-75 Beast 32764 | -5/Garrison | Allies destroyed B-75 Beast 32784 | -5/Garrison | Triggered checkpoint 32812 | -5/Garrison | Triggered checkpoint 32913 | -5/Garrison | Discovered new exit (range 6) 32946 | -5/Garrison | Triggered checkpoint 32993 | -5/Garrison | Discovered new exit (range 57) 32993 | -5/Garrison | Discovered new exit (range 65) 32993 | -5/Garrison | Discovered new exit (range 23) 33025 | -5/Garrison | Garrison Relay disabled 33052 | -5/Garrison | Expanded RIF knowledge: Autooverride 33094 | -5/Garrison | Triggered checkpoint 33204 | -5/Garrison | Triggered checkpoint 33312 | -5/Garrison | Triggered checkpoint 33318 | -5/Garrison | Garrison Relay disabled 33351 | -5/Garrison | Rescued a captive Derelict 33358 | -5/Garrison | Rescued a captive Derelict 33375 | -5/Garrison | Garrison Relay disabled 33581 | -5/Garrison | Garrison Relay disabled 33857 | -5/Garrison | Entered Factory 33857 | -5/Factory | Accompanied by 7 allies 34045 | -5/Factory | Discovered new exit (range 11) 34157 | -5/Factory | First assault squad dispatched 34405 | -5/Factory | Garrison activated, responded to threat 34737 | -5/Factory | Identified exit to Upper Caves 34877 | -5/Factory | Identified exit to Garrison 34920 | -5/Factory | Entered Garrison 34920 | -5/Garrison | Accompanied by 5 allies 35016 | -5/Garrison | Triggered checkpoint 35079 | -5/Garrison | Garrison Relay disabled 35109 | -5/Garrison | Rescued a captive Derelict 35110 | -5/Garrison | Rescued a captive Derelict 35172 | -5/Garrison | Triggered checkpoint 35208 | -5/Garrison | Spotted B-75 Beast 35214 | -5/Garrison | Triggered checkpoint 35228 | -5/Garrison | Triggered checkpoint 35243 | -5/Garrison | Destroyed B-75 Beast 35354 | -5/Garrison | Triggered checkpoint 35486 | -5/Garrison | Expanded RIF knowledge: Autooverride 35510 | -5/Garrison | Triggered checkpoint 35564 | -5/Garrison | Garrison Relay disabled 35569 | -5/Garrison | Found embedded Infiltrators 35660 | -5/Garrison | Discovered new exit (range 10) 35706 | -5/Garrison | Spotted B-75 Beast 35719 | -5/Garrison | Allies destroyed B-75 Beast 35872 | -5/Garrison | Triggered checkpoint 35895 | -5/Garrison | Learned Factory security intel 35933 | -5/Garrison | Garrison Relay disabled 36003 | -5/Garrison | Discovered new exit (range 13) 36392 | -5/Garrison | Triggered checkpoint 36428 | -5/Garrison | Discovered new exit (range 11) 36489 | -5/Garrison | Garrison Relay disabled 36569 | -5/Garrison | Garrison Relay disabled 36586 | -5/Garrison | Triggered checkpoint 36924 | -5/Garrison | Found Relay Coupler [Proto] 36926 | -5/Garrison | Found Relay Coupler [Proto] 37135 | -5/Garrison | Entered Factory 37135 | -4/Factory | Accompanied by 14 allies 37135 | -4/Factory | Evolved 2 slots: Utility x2 37385 | -4/Factory | First assault squad dispatched 37508 | -4/Factory | Identified exit to Upper Caves 37508 | -4/Factory | Identified exit to Armory 37586 | -4/Factory | Found Unknown Device 37586 | -4/Factory | Identified Quantum Capacitor 37731 | -4/Factory | Garrison activated, responded to threat 37990 | -4/Factory | Identified exit to Garrison 38003 | -4/Factory | Entered Garrison 38003 | -4/Garrison | Accompanied by 3 allies 38042 | -4/Garrison | Garrison Relay disabled 38058 | -4/Garrison | Triggered checkpoint 38178 | -4/Garrison | Spotted B-86 Titan 38181 | -4/Garrison | Triggered checkpoint 38204 | -4/Garrison | Triggered checkpoint 38221 | -4/Garrison | Triggered checkpoint 38233 | -4/Garrison | Destroyed B-86 Titan 38282 | -4/Garrison | Discovered new exit (range 27) 38282 | -4/Garrison | Discovered new exit (range 45) 38282 | -4/Garrison | Discovered new exit (range 51) 38351 | -4/Garrison | Expanded RIF knowledge: Watcher Feeds 38384 | -4/Garrison | Triggered checkpoint 38394 | -4/Garrison | Garrison Relay disabled 38465 | -4/Garrison | Rescued a captive Derelict 38475 | -4/Garrison | Rescued a captive Derelict 38567 | -4/Garrison | Found Antimissile System 38633 | -4/Garrison | Triggered checkpoint 38689 | -4/Garrison | Expanded RIF knowledge: Zone Cloak 38792 | -4/Garrison | Triggered checkpoint 38813 | -4/Garrison | Garrison Relay disabled 38940 | -4/Garrison | Garrison Relay disabled 39006 | -4/Garrison | Entered Research 39006 | -3/Research | Accompanied by 10 allies 39006 | -3/Research | Evolved 2 slots: Power x1, Utility x1 39063 | -3/Research | Spotted B-86 Titan 39288 | -3/Research | Fabricated Adv. Heavy Siege Treads (x2) 39356 | -3/Research | Identified exit to Testing 39383 | -3/Research | Spotted B-86 Titan 39399 | -3/Research | Destroyed B-86 Titan 39494 | -3/Research | P-80 Master assimilated allied Veteran 7f 39506 | -3/Research | First assault squad dispatched 39748 | -3/Research | Found Enh. Force Lance 39923 | -3/Research | Discovered new exit (range 40) 39969 | -3/Research | Entered Testing 39969 | -3/Testing | Accompanied by 3 allies 40065 | -3/Testing | Found Prototype Ballistic Cannon 40065 | -3/Testing | Identified Perforator 40161 | -3/Testing | Garrison activated, responded to threat 40219 | -3/Testing | First assault squad dispatched 40232 | -3/Testing | Discovered new exit (range 11) 40330 | -3/Testing | Found Prototype Energy Cannon 40330 | -3/Testing | Identified Potential Cannon 40472 | -3/Testing | Spotted PH-PYR43NII0F 40772 | -3/Testing | Found Prototype Energy Cannon 40772 | -3/Testing | Identified Null Cannon 40936 | -3/Testing | Found Prototype Ballistic Gun 40936 | -3/Testing | Identified Hyp. Multirail 40967 | -3/Testing | Found Prototype Device 40967 | -3/Testing | Identified Imp. Particle Accelerator 41007 | -3/Testing | P-80 Master assimilated allied Assassin 8c 41108 | -3/Testing | Spotted Striker 41111 | -3/Testing | Spotted Striker 41133 | -3/Testing | Destroyed Striker 41143 | -3/Testing | Allies destroyed Striker 41161 | -3/Testing | Spotted Alpha 7 41164 | -3/Testing | Assimilated Alpha 7 with formatsys_high 41739 | -3/Testing | Garrison activated, responded to threat 41816 | -3/Testing | Identified exit to Garrison 41816 | -3/Testing | Entered Garrison 41816 | -3/Garrison | Accompanied by 4 allies 41846 | -3/Garrison | Triggered checkpoint 41854 | -3/Garrison | Allies destroyed Alpha 7 41881 | -3/Garrison | Garrison Relay disabled 42084 | -3/Garrison | Rescued a captive Derelict 42244 | -3/Garrison | Spotted B-86 Titan 42294 | -3/Garrison | Triggered checkpoint 42299 | -3/Garrison | Triggered checkpoint 42318 | -3/Garrison | Allies destroyed B-86 Titan 42330 | -3/Garrison | Triggered checkpoint 42338 | -3/Garrison | Core integrity fell below 50% 42546 | -3/Garrison | Triggered checkpoint 42642 | -3/Garrison | Found Antimissile System 42689 | -3/Garrison | Triggered checkpoint 42740 | -3/Garrison | Discovered new exit (range 14) 42754 | -3/Garrison | Triggered checkpoint 42889 | -3/Garrison | Garrison Relay disabled 42988 | -3/Garrison | Triggered checkpoint 43012 | -3/Garrison | Triggered checkpoint 43082 | -3/Garrison | Expanded RIF knowledge: Crosswire 43342 | -3/Garrison | Triggered checkpoint 43371 | -3/Garrison | Garrison Relay disabled 43519 | -3/Garrison | Discovered new exit (range 9) 43730 | -3/Garrison | Triggered checkpoint 43920 | -3/Garrison | Expanded RIF knowledge: Robot Detection 43932 | -3/Garrison | Garrison Relay disabled 44142 | -3/Garrison | Discovered new exit (range 12) 44220 | -3/Garrison | Spotted B-86 Titan 44243 | -3/Garrison | Allies destroyed B-86 Titan 44512 | -3/Garrison | Entered Research 44512 | -2/Research | Accompanied by 2 allies 44512 | -2/Research | Evolved 2 slots: Utility x2 44604 | -2/Research | Identified exit to Quarantine 44717 | -2/Research | Spotted B-90 Cyclops 44734 | -2/Research | Destroyed B-90 Cyclops 45012 | -2/Research | First assault squad dispatched 45072 | -2/Research | P-80 Master assimilated allied L-61 Swordsman 45077 | -2/Research | High security lockdown imminent 45157 | -2/Research | High security lockdown engaged 45182 | -2/Research | Spotted B-90 Cyclops 45310 | -2/Research | Assimilated ARC 9a with formatsys_deep 45416 | -2/Research | P-80 Master assimilated allied Warden 8h 45474 | -2/Research | Spotted Executioner 45474 | -2/Research | Spotted Striker 45483 | -2/Research | Destroyed Striker 45538 | -2/Research | Spotted Investigator 45572 | -2/Research | Scanned by Researcher 45585 | -2/Research | Destroyed Investigator 45599 | -2/Research | Entered Quarantine 45603 | -2/Quarantine | Cryocooling Duct disabled 45607 | -2/Quarantine | Cryocooling Duct disabled 45618 | -2/Quarantine | Ambient heat levels rising (+20) 45618 | -2/Quarantine | Non-combat units ordered to evacuate 45622 | -2/Quarantine | Ambient heat levels rising (+20) 45622 | -2/Quarantine | Combat units ordered to evacuate 45667 | -2/Quarantine | Found Prototype Processor 45722 | -2/Quarantine | Quarantine Guard activated 45823 | -2/Quarantine | Spotted Quarantine Guard 45832 | -2/Quarantine | Spotted Quarantine Guard 45835 | -2/Quarantine | Destroyed Quarantine Guard 45842 | -2/Quarantine | Spotted Quarantine Guard 45845 | -2/Quarantine | Spotted Quarantine Guard 45849 | -2/Quarantine | Destroyed Quarantine Guard 45860 | -2/Quarantine | Destroyed Quarantine Guard 45919 | -2/Quarantine | Spotted Quarantine Guard 45932 | -2/Quarantine | Allies destroyed Quarantine Guard 45985 | -2/Quarantine | Found Alien Artifact 46046 | -2/Quarantine | Spotted Quarantine Guard 46060 | -2/Quarantine | Destroyed Quarantine Guard 46143 | -2/Quarantine | Spotted Quarantine Guard 46162 | -2/Quarantine | Allies destroyed Quarantine Guard 46224 | -2/Quarantine | Identified Core Reset Matrix 46224 | -2/Quarantine | Identified Spectral Analyzer 46275 | -2/Quarantine | Spotted Quarantine Guard 46287 | -2/Quarantine | Destroyed Quarantine Guard 46867 | -2/Quarantine | Spotted Quarantine Guard 47112 | -2/Quarantine | Discovered new exit (range 13) 47112 | -2/Quarantine | Spotted Quarantine Guard 47123 | -2/Quarantine | Destroyed Quarantine Guard 49345 | -2/Quarantine | Found Alien Reactor 49345 | -2/Quarantine | Identified Matter Drive 50403 | -2/Quarantine | Repaired Coolant Network? 50734 | -2/Quarantine | Found Alien Impact Weapon 50734 | -2/Quarantine | Identified Core Stripper 51293 | -2/Quarantine | Met incapacitated Sigix Warrior 51293 | -2/Quarantine | Lockdown squad dispatched 51348 | -2/Quarantine | Spotted Lightning 51359 | -2/Quarantine | Spotted Lightning 51360 | -2/Quarantine | Spotted Lightning 51362 | -2/Quarantine | Assimilated Lightning with formatsys_high 51363 | -2/Quarantine | Assimilated Lightning with formatsys_high 51379 | -2/Quarantine | Allies destroyed Lightning 51607 | -2/Quarantine | Spotted Fortress 51613 | -2/Quarantine | Assimilated Fortress with formatsys_high 52808 | -2/Quarantine | Discovered new exit (range 5) 52808 | -2/Quarantine | Spotted Quarantine Guard 52816 | -2/Quarantine | Allies destroyed Quarantine Guard 53372 | -2/Quarantine | Build established: Botlord-Gunner 53757 | -2/Quarantine | Found Alien Energy Cannon 53757 | -2/Quarantine | Identified Core Cannon 53779 | -2/Quarantine | Build established: Botlord-Mutant 53916 | -2/Quarantine | Found Alien Artifact 54131 | -2/Quarantine | Found Alien Artifact 54131 | -2/Quarantine | Identified Dimensional Node Initializer 54131 | -2/Quarantine | Initialized slip node 54192 | -2/Quarantine | Found Alien Slashing Weapon 54192 | -2/Quarantine | Identified Sigix Broadsword 54851 | -2/Quarantine | Found Alien Artifact 54875 | -2/Quarantine | Found Dimensional Node Initializer 55247 | -2/Quarantine | Entered Section 7 55247 | -2/Section 7 | Accompanied by 5 allies 55497 | -2/Section 7 | First assault squad dispatched 55514 | -2/Section 7 | Spotted B-90 Cyclops 55533 | -2/Section 7 | Allies destroyed B-90 Cyclops 55612 | -2/Section 7 | Identified Hpw. Transdimensional Reconstructor 55620 | -2/Section 7 | Found Integrated Dissipator 55628 | -2/Section 7 | Discovered new exit (range 9) 55746 | -2/Section 7 | Installed Integrated Dissipator, increased core heat dissipation (+20) 55749 | -2/Section 7 | Found Spacefold Activator 56068 | -2/Section 7 | Spotted S7 Guard 56074 | -2/Section 7 | Allies destroyed S7 Guard 56335 | -2/Section 7 | Spotted Executioner 56335 | -2/Section 7 | Spotted Executioner 56346 | -2/Section 7 | Allies destroyed Executioner 56353 | -2/Section 7 | Allies destroyed Executioner 56633 | -2/Section 7 | Initialized slip node 56899 | -2/Section 7 | Core integrity fell below 50% 57082 | -2/Section 7 | Spotted S7 Guard 57099 | -2/Section 7 | Destroyed S7 Guard 57233 | -2/Section 7 | P-80 Master assimilated allied Artificer 9a 57274 | -2/Section 7 | Found Alien Artifact 57300 | -2/Section 7 | Found Alien Artifact 57404 | -2/Section 7 | Found Alien Artifact 57404 | -2/Section 7 | Identified Microwarp Drive 57516 | -2/Section 7 | Found Alien Artifact 57767 | -2/Section 7 | Identified Navigation Efficiency Matrix 57767 | -2/Section 7 | Identified Integrated Mediator 57767 | -2/Section 7 | Identified Integrated Thermoelectric Network 57769 | -2/Section 7 | Installed Integrated Mediator, increased core attachment efficiency. 57771 | -2/Section 7 | Installed Integrated Thermoelectric Network, gained heat-energy exchange potential 57802 | -2/Section 7 | Found Alien Artifact 57806 | -2/Section 7 | Identified Transdimensional Reconstructor 57806 | -2/Section 7 | Found Transdimensional Reconstructor 57821 | -2/Section 7 | Found Terrabomb 57952 | -2/Section 7 | Spotted B-99 Colossus 58091 | -2/Section 7 | Found LRC Matter Compressor 58092 | -2/Section 7 | Installed LRC Matter Compressor, increased matter storage capacity (+125) 58096 | -2/Section 7 | Found LRC Energy Well 58202 | -2/Section 7 | Installed LRC Energy Well, increased energy storage capacity (+250) 58205 | -2/Section 7 | Found Alien Artifact 58260 | -2/Section 7 | Warped through subspace to slip node 58272 | -2/Section 7 | Assimilated Fortress with formatsys_high 58325 | -2/Section 7 | Used Terrabomb 58349 | -2/Section 7 | Identified exit to Garrison 58371 | -2/Section 7 | Entered Garrison 58371 | -2/Garrison | 1 ally did not survive the journey 58501 | -2/Garrison | Garrison Relay disabled 58607 | -2/Garrison | Spotted B-90 Cyclops 58612 | -2/Garrison | Triggered checkpoint 58622 | -2/Garrison | Triggered checkpoint 58638 | -2/Garrison | Allies destroyed B-90 Cyclops 58644 | -2/Garrison | Triggered checkpoint 58762 | -2/Garrison | Discovered new exit (range 10) 58800 | -2/Garrison | Triggered checkpoint 58827 | -2/Garrison | Garrison Relay disabled 58851 | -2/Garrison | Rescued a captive Derelict 58852 | -2/Garrison | Rescued a captive Derelict 59085 | -2/Garrison | Discovered new exit (range 14) 59091 | -2/Garrison | Found embedded Infiltrators 59175 | -2/Garrison | Garrison Relay disabled 59188 | -2/Garrison | Triggered checkpoint 59219 | -2/Garrison | Expanded RIF knowledge: Autoassimilate 59308 | -2/Garrison | Triggered checkpoint 59368 | -2/Garrison | Triggered checkpoint 59418 | -2/Garrison | Garrison Relay disabled 59507 | -2/Garrison | Discovered new exit (range 12) 59522 | -2/Garrison | Triggered checkpoint 60195 | -2/Garrison | Entered Access 60195 | -1/Access | Accompanied by 8 allies 60195 | -1/Access | Evolved 2 slots: Power x1, Weapon x1 60428 | -1/Access | Identified exit to Command 60695 | -1/Access | First assault squad dispatched 60733 | -1/Access | Assimilated ARC 10a with formatsys_deep 61207 | -1/Access | Found Exp. Focal Shield 61211 | -1/Access | Found Exp. EM Disruption Field 61989 | -1/Access | High security lockdown imminent 62069 | -1/Access | High security lockdown engaged 62156 | -1/Access | Assimilated ARC 10b with formatsys_deep 62242 | -1/Access | Spotted Striker 62242 | -1/Access | Spotted Striker 62253 | -1/Access | Allies destroyed Striker 62260 | -1/Access | Destroyed Striker 62295 | -1/Access | Spotted Investigator 62298 | -1/Access | Destroyed Investigator 62375 | -1/Access | Spotted Striker 62375 | -1/Access | Spotted Striker 62378 | -1/Access | Assimilated Striker with formatsys_high 62395 | -1/Access | Allies destroyed Striker 62477 | -1/Access | Spotted Investigator 62513 | -1/Access | Spotted Striker 62526 | -1/Access | Destroyed Striker 62565 | -1/Access | Spotted Striker 62566 | -1/Access | Autoassimilated Striker with RIF 62567 | -1/Access | Spotted Executioner 62568 | -1/Access | Spotted Executioner 62584 | -1/Access | Allies destroyed Executioner 62661 | -1/Access | Spotted Executioner 62674 | -1/Access | Destroyed Executioner 62712 | -1/Access | Spotted Executioner 62712 | -1/Access | Spotted Executioner 62715 | -1/Access | Destroyed Executioner 62715 | -1/Access | Destroyed Executioner 62718 | -1/Access | Destroyed Striker 62760 | -1/Access | Spotted Striker 62760 | -1/Access | Spotted Executioner 62762 | -1/Access | Destroyed Executioner 62764 | -1/Access | Destroyed Striker 62785 | -1/Access | Spotted Executioner 62814 | -1/Access | Spotted Striker 62814 | -1/Access | Spotted Striker 62814 | -1/Access | Spotted Striker 62814 | -1/Access | Spotted Executioner 62814 | -1/Access | Spotted Striker 62815 | -1/Access | Autoassimilated Striker with RIF 62824 | -1/Access | Destroyed Executioner 62824 | -1/Access | Destroyed Striker 62827 | -1/Access | Destroyed Executioner 62833 | -1/Access | Destroyed Striker 62843 | -1/Access | Destroyed Striker 62866 | -1/Access | Allies destroyed Investigator 62900 | -1/Access | Garrison activated, responded to threat 62913 | -1/Access | Sterilization system engaged 62946 | -1/Access | Spotted Striker 62946 | -1/Access | Spotted Executioner 62947 | -1/Access | Autoassimilated Executioner with RIF 62969 | -1/Access | Spotted Executioner 62980 | -1/Access | Spotted Striker 62980 | -1/Access | Spotted Striker 62980 | -1/Access | Allies destroyed Striker 62985 | -1/Access | Spotted Executioner 62987 | -1/Access | Spotted Striker 62987 | -1/Access | Allies destroyed Striker 62994 | -1/Access | Destroyed Striker 63009 | -1/Access | Destroyed Striker 63030 | -1/Access | Destroyed 13 combat bots 63213 | -1/Access | Ambient heat levels rising (+10) 63306 | -1/Access | Found Unknown Device 63306 | -1/Access | Identified Adv. Force Booster 63363 | -1/Access | Ambient heat levels rising (+10) 63484 | -1/Access | Entered Command 63563 | -1/Command | High security lockdown imminent 63643 | -1/Command | High security lockdown engaged 63739 | -1/Command | Spotted Striker 63739 | -1/Command | Spotted Executioner 63739 | -1/Command | Spotted Striker 63740 | -1/Command | Autoassimilated Striker with RIF 63761 | -1/Command | Destroyed Striker 63762 | -1/Command | Core integrity fell below 50% 63829 | -1/Command | Spotted Investigator 63837 | -1/Command | Spotted Executioner 63852 | -1/Command | Spotted Striker 63853 | -1/Command | Autoassimilated Striker with RIF 63857 | -1/Command | Destroyed Executioner 63861 | -1/Command | Allies destroyed Investigator 63892 | -1/Command | Destroyed 7 combat bots 63969 | -1/Command | Spotted Striker 63969 | -1/Command | Spotted Striker 63970 | -1/Command | Destroyed Striker 63971 | -1/Command | Spotted Striker 63972 | -1/Command | Destroyed Striker 63973 | -1/Command | Spotted Executioner 63975 | -1/Command | Spotted Executioner 63975 | -1/Command | Spotted Striker 63975 | -1/Command | Spotted Striker 63978 | -1/Command | Destroyed Striker 63979 | -1/Command | Spotted Striker 63979 | -1/Command | Spotted Striker 63980 | -1/Command | Spotted Investigator 63982 | -1/Command | Spotted Striker 63986 | -1/Command | Destroyed Executioner 63988 | -1/Command | Destroyed Striker 63990 | -1/Command | Destroyed Executioner 63992 | -1/Command | Destroyed Investigator 64006 | -1/Command | Destroyed Striker 64015 | -1/Command | Destroyed Striker 64031 | -1/Command | Destroyed Striker 64052 | -1/Command | Destroyed 16 combat bots 64102 | -1/Command | Found Exp. Core Analyzer 64164 | -1/Command | Spotted Striker 64165 | -1/Command | Autoassimilated Striker with RIF 64166 | -1/Command | Spotted Executioner 64168 | -1/Command | Destroyed Executioner 64175 | -1/Command | Spotted Executioner 64187 | -1/Command | P-80 Master assimilated allied L-61 Swordsman 64210 | -1/Command | Destroyed Executioner 64262 | -1/Command | Found Exp. Core Analyzer 64272 | -1/Command | Destroyed 17 combat bots 64394 | -1/Command | Spotted Striker 64394 | -1/Command | Spotted Striker 64395 | -1/Command | Autoassimilated Striker with RIF 64398 | -1/Command | Destroyed Striker 64404 | -1/Command | Spotted Executioner 64409 | -1/Command | Allies destroyed Striker 64442 | -1/Command | Destroyed 11 combat bots 64442 | -1/Command | Allies destroyed Executioner 64445 | -1/Command | Spotted Investigator 64446 | -1/Command | Spotted Executioner 64449 | -1/Command | Destroyed Executioner 64453 | -1/Command | Destroyed Investigator 64456 | -1/Command | Spotted Executioner 64456 | -1/Command | Destroyed Executioner 64469 | -1/Command | Spotted Striker 64470 | -1/Command | Destroyed Striker 64712 | -1/Command | Spotted Striker 64712 | -1/Command | Spotted Investigator 64715 | -1/Command | Destroyed Executioner 64717 | -1/Command | Spotted Executioner 64717 | -1/Command | Spotted Executioner 64721 | -1/Command | Allies destroyed Striker 64722 | -1/Command | Destroyed Executioner 64726 | -1/Command | Destroyed Executioner 64732 | -1/Command | Spotted Executioner 64733 | -1/Command | Spotted Striker 64735 | -1/Command | Destroyed Executioner 64740 | -1/Command | Spotted Striker 64741 | -1/Command | Destroyed Striker 64753 | -1/Command | Destroyed Striker 64755 | -1/Command | Destroyed Striker 64776 | -1/Command | Destroyed 11 combat bots 64815 | -1/Command | Found Prototype Launcher 64815 | -1/Command | Identified Containment Facilitator 71145 | -1/Command | Spotted M Guard 71145 | -1/Command | Spotted Combat Programmer 71148 | -1/Command | Spotted M Guard 71150 | -1/Command | Spotted Combat Programmer 71174 | -1/Command | Destroyed Combat Programmer 71180 | -1/Command | Destroyed Combat Programmer 71191 | -1/Command | Assimilated M Guard with formatsys_high 71194 | -1/Command | Assimilated M Guard with formatsys_high 71858 | -1/Command | Found Adv. Micro-nuke Launcher 72622 | -1/Command | Spotted Alpha 7 72730 | -1/Command | Spotted Striker 72731 | -1/Command | Autoassimilated Striker with RIF 72745 | -1/Command | Spotted Striker 72756 | -1/Command | Spotted Alpha 7 72789 | -1/Command | Spotted Executioner 72791 | -1/Command | Spotted Executioner 72791 | -1/Command | Spotted Executioner 72796 | -1/Command | Spotted B-99 Colossus 72804 | -1/Command | Destroyed Striker 72807 | -1/Command | Destroyed Alpha 7 72809 | -1/Command | Core integrity fell below 20% 72809 | -1/Command | Allies destroyed Executioner 72813 | -1/Command | Allies destroyed Executioner 72819 | -1/Command | Spotted Executioner 72824 | -1/Command | Assimilated Colossus 10a with formatsys_high 72831 | -1/Command | Spotted B-99 Colossus 72836 | -1/Command | Discovered new exit (range 21) 72838 | -1/Command | Assimilated Colossus 10b with formatsys_high 72840 | -1/Command | Allies destroyed Executioner 72856 | -1/Command | Found Prototype Device 72860 | -1/Command | Identified Adv. Kinecellerator 73127 | -1/Command | Build established: Commander-Mutant 75565 | -1/Command | Identified Integrity Redistributor 75565 | -1/Command | Used Integrity Redistributor, redistributed integrity to core (+586) 76633 | -1/Command | Found Hvy. Reactive Plating 77530 | -1/Command | Found Fusion Bomb Launcher 77561 | -1/Command | Phase Generator disabled 78026 | -1/Command | 0b10 Conduit disabled 78029 | -1/Command | Met MAIN.C 78042 | -1/Command | Found Meganuke 78043 | -1/Command | Allies destroyed MAIN.C Shell 78043 | -1/Command | MAIN.C activated Command garrisons 78087 | -1/Command | Destroyed MAIN.C 78122 | -1/Command | Discovered new exit (range 31) 78122 | -1/Command | Discovered new exit (range 89) 78122 | -1/Command | Extracted map data and part IDs from MAIN.C's data core 78140 | -1/Command | Spotted B-99 Colossus 78162 | -1/Command | Allies destroyed B-99 Colossus 78194 | -1/Command | Spotted B-99 Colossus 78217 | -1/Command | Allies destroyed B-99 Colossus 78259 | -1/Command | All MAIN.C guards destroyed 78460 | -1/Command | Build established: Hauler-Mutant 78496 | -1/Command | Found Zero-point Reactor 78499 | -1/Command | Found Vortex Chain Reactor 78505 | -1/Command | Found Exp. Targeting Computer 78508 | -1/Command | Found Exp. Targeting Computer 78513 | -1/Command | Found Centrium Heavy Armor Plating 78773 | -1/Command | Build established: Scavenger-Mutant 79192 | -1/Command | Build established: Hauler-Mutant 80368 | -1/Command | Found Corrupted AEGIS Remote Shield 80381 | -1/Command | Found Corrupted AEGIS Remote Shield 80647 | -1/Command | Found Exp. System Purifier 80844 | -1/Command | Found Corrupted Hvy. Regenerative Plating 80845 | -1/Command | System corruption reached 10% 81043 | -1/Command | Found Corrupted Hvy. Regenerative Plating 84942 | -1/Command | Destroyed Colossus 10b 86100 | -1/Command | Build established: Scavenger-Mutant 86914 | -1/Command | Warped through subspace to slip node 86914 | -1/Command | Discovered new exit (range 4) 86920 | -1/Command | Entered Access_0 86921 | -1/Access_0 | Met Architect 86929 | -1/Access_0 | Architect warped through subspace 86935 | -1/Access_0 | Destroyed A8 86963 | -1/Access_0 | Architect warped through subspace 86992 | -1/Access_0 | Architect warped through subspace 87031 | -1/Access_0 | Architect warped through subspace 87064 | -1/Access_0 | Architect warped through subspace 87108 | -1/Access_0 | Architect warped through subspace 87138 | -1/Access_0 | Architect warped through subspace 87157 | -1/Access_0 | Architect warped through subspace 87189 | -1/Access_0 | Architect warped through subspace 87204 | -1/Access_0 | Architect warped through subspace 87221 | -1/Access_0 | Destroyed Architect 87222 | -1/Access_0 | Architect triggered a singularity event 87225 | -1/Access_0 | Warped through subspace to slip node 87225 | -1/Access_0 | Discovered new exit (range 8) 87226 | -1/Access_0 | Released all parts (17) 87229 | *** | Escaped singularity! Last Messages --------------- 87226_ Released Spectral Analyzer. 87226_ Released Imp. Armor Integrity Analyzer. 87226_ Released Exp. Core Analyzer. 87226_ Released Vortex Chain Reactor. 87226_ Released Arm. Heavy Treads. 87226_ Released Zero-point Reactor. 87226_ Zero-point Reactor crushed and broken. 87226_ Released Exp. Targeting Computer. 87226_ Released Adv. Terrain Scan Processor. 87226_ Released Potential Cannon. 87226_ Potential Cannon crushed and broken. 87226_ Released Adv. Particle Charger. 87226_ Adv. Particle Charger crushed and broken. 87226_ Released Core Cannon. 87226_ Core Cannon crushed and broken. 87226_ Extracted 1 energy. 87227_ A0_COM: 6. 87228_ A0_COM: 5. 87228_ System corrupted: Matter fused (-10). 87229_ A0_COM: 4. Map ----- +----------------------------------------------------+ | | | | | | | | | | | | | | | | | | | | | | | | | | | | | | | | | ?????????????????????????????????????????????????? | | ?????????????????????????????????????????????????? | | ?????????????????????????????????????????????????? | | ?????????????????????????????????????????????????? | | ?????????????????????????????????????????????????? | | ?????????????????????????????????????????????????? | | ????????????????????????###??????????????????????? | | ???????????????????????## ##?????????????????????? | | ???????????????????????# #?????????????????????? | | ???????????????????????# @ #?????????????????????? | | ??????????????????????## #?????????????????????? | | ??????????????????????# = #?????????????????????? | | ??????????????????????#*@=##?????????????????????? | | ??????????????????????##=!=#?????????????????????? | | ??????????????????????#!!!=#?????????????????????? | | ??????????????????????#&!!##?????????????????????? | | ??????????????????????#]/!*#?????????????????????? | | ??????????????????????#!!!##?????????????????????? | | ??????????????????????##!!#??????????????????????? | | ???????????????????????####??????????????????????? | | ?????????????????????????????????????????????????? | | ?????????????????????????????????????????????????? | | ?????????????????????????????????????????????????? | | ?????????????????????????????????????????????????? | | ?????????????????????????????????????????????????? | | ?????????????????????????????????????????????????? | | ?????????????????????????????????????????????????? | | ?????????????????????????????????????????????????? | | ?????????????????????????????????????????????????? | | ?????????????????????????????????????????????????? | | ?????????????????????????????????????????????????? | | ?????????????????????????????????????????????????? | | ?????????????????????????????????????????????????? | | ?????????????????????????????????????????????????? | +----------------------------------------------------+ Best States ------------- Heat Dissipation 159 Energy Generation 114 Energy Capacity 1800 Matter Stores 550 Matter Capacity 550 Sight Range 24 Terrain Scan Range 20 Terrain Scan Density 210 ECM Strength 1 Jamming Range 16 Power Amplification 40 Base Temperature (-) 200 Corruption Containment 20 Armor Coverage 1200 Resistance: KI 40 Resistance: TH 25 Resistance: EM 75 Utility Shielding 66 Weapon Shielding 66 Point Defense Rating 240 Weapon Cycling 25 Evasion (%) 40 Targeting Accuracy 24 Core Analysis 11 Armor Integrity Analysis 40 Recoil Reduction 6 Particle Charging 25 Offensive Hacking 20 Defensive Hacking 10 Relay Coupler Types 9 Relay Coupler Value 296 Item Schematics ----------------- Cargo Storage Unit | -10/Materials | Hacked Lgt. Armor Plating | -8/Materials | Scanalyzed Hacking Suite | -8/Storage | Hacked Hvy. Gatling Laser | -3/Testing | Archive Exp. Matter Compressor | -3/Testing | Archive Imp. Diametric Drive | -3/Testing | Archive Hvy. Neutron Cannon | -3/Testing | Archive Exp. Heat Sink | -3/Testing | Archive Quantum Shading Machine | -3/Testing | Archive Coolant Network | -3/Testing | Archive Cld. Antimatter Reactor | -3/Testing | Archive Imp. KE Penetrator | -3/Testing | Archive Graviton Reactor | -3/Testing | Archive Vibroblade | -3/Testing | Archive Exp. Armor Integrity Analyzer | -2/Quarantine | Archive Hvy. Hardcell Cannon | -2/Quarantine | Archive Cld. Linear Gravjet | -2/Quarantine | Archive Exp. Reaction Control System | -2/Quarantine | Archive Imp. Matter Compressor | -2/Quarantine | Archive Exp. Core Analyzer | -2/Quarantine | Archive Adv. Energy Well | -2/Quarantine | Archive Cld. Plasma Rifle | -2/Quarantine | Archive Enh. Armored Heavy Treads | -2/Quarantine | Archive Tesla Bomb Launcher | -2/Section 7 | Archive System Purifier | -2/Section 7 | Archive Mni. Fusion Reactor | -2/Section 7 | Archive Cld. Field Propulsion Drive | -2/Section 7 | Archive Exp. Q-thruster | -2/Section 7 | Archive Cld. Antigrav System | -2/Section 7 | Archive Exp. Signal Interpreter | -2/Section 7 | Archive Robot Schematics ------------------ G-67 Veteran | -3/Testing | Archive E-15 Imp | -3/Testing | Archive X-82 Rainmaker | -3/Testing | Archive S-43 Plague | -3/Testing | Archive C-55 Analyst | -2/Quarantine | Archive H-77 Assassin | -2/Quarantine | Archive T-07 Excavator | -2/Section 7 | Archive Fabricated ------------ Cargo Storage Unit | x1 | -7/Factory Adv. Heavy Siege Treads | x2 | -3/Research | Preloaded Alien Tech Used ----------------- Matter Drive Core Stripper Core Cannon Dimensional Node Initializer Sigix Broadsword Integrated Dissipator Spacefold Activator Microwarp Drive Integrated Mediator Integrated Thermoelectric Network LRC Matter Compressor LRC Energy Well Transdimensional Reconstructor Terrabomb Integrity Redistributor High-powered Transdimensional Reconstructor Achievements -------------- None Challenges ------------ None Player 2 | -11 -10 -10 -10 -9 -8 -8 -8 -7 -7 -7 -7 -6 -6 -6 -6 -5 -5 -5 -5 -4 -4 -3 -3 -3 -2 -2 -2 -2 -1 -1 -1 ---------- Run | Jun Mat Min Exi Min Mat Sto Gar Fac Gar Fac Gar Fac Gar Fac Gar Fac Gar Fac Gar Fac Gar Res Tes Gar Res Qua Sec Gar Acc Com Ac0 Slots Evolved 18 | . . . . 4 . . 2 . . . 2 . . . 2 . . . 2 . 2 . . 2 . . . 2 . . . Power 2 | . . . . 1 . . . . . . 1 . . . . . . . . . . . . . . . . . . . . Propulsion 5 | . . . . 2 . . 2 . . . . . . . 1 . . . . . . . . . . . . . . . . Utility 10 | . . . . 1 . . . . . . 1 . . . 1 . . . 2 . 1 . . 2 . . . 2 . . . Weapon 1 | . . . . . . . . . . . . . . . . . . . . . 1 . . . . . . . . . . Parts Attached 615 | . 15 4 . . 14 7 25 23 19 . 6 12 19 3 9 4 7 14 23 9 7 29 24 47 32 19 26 13 78 118 9 Parts Lost 112 | . . . . . 1 . 8 4 1 . . . . . 2 . . 1 1 . 2 10 4 15 8 3 5 6 24 17 . Damage Taken 37082 | . 150 21 . 22 837 385 866 1184 720 20 51 491 532 542 625 112 448 841 576 389 560 2042 1208 2471 2840 1225 2372 1447 6196 6611 1298 Core 4009 | . 34 . . 22 200 64 75 74 119 20 9 36 114 40 75 24 46 65 49 121 38 143 136 378 334 163 172 149 618 507 184 Player 2/Cogmind (%) 71 | . 46 . . 50 81 50 48 66 71 100 10 37 55 93 48 100 63 100 100 100 49 100 85 79 79 100 81 62 85 68 51 Absorbed by Shields 10481 | . . . . . . . . 8 556 16 24 114 384 248 628 80 344 376 232 152 208 534 . . 13 . . 23 3037 2254 1250 Damage Inflicted 96143 | . 646 34 . 119 1927 1522 1097 2155 1779 90 330 1011 1300 1056 932 790 868 2847 628 1880 1025 7921 6891 5609 5086 3050 5772 2168 19562 15500 2548 Player 2/Cogmind (%) 62 | . 55 25 . 34 51 41 40 61 65 95 37 94 56 69 49 55 50 81 36 80 46 90 80 64 60 67 65 45 85 54 24 Combat Hostiles Destroyed 392 | . 8 2 . . 19 20 19 10 14 1 1 6 11 5 9 2 5 13 5 7 7 25 17 24 24 9 18 7 68 35 1 Player 2/Cogmind (%) 55 | . 61 50 . . 48 74 63 58 60 100 50 85 68 83 100 66 45 76 50 70 70 89 77 64 61 56 54 70 53 29 10 Game ------ Seed AntigravGodRipper Manual? 0 Play Time 14:51:18 Cumulative 732.0 hours Start 2023.05.20 @ 17:16:51 End 2023.08.21 @ 13:31:18 Sessions 33 Manual Loads 0 Difficulty Rogue Special Mode AFD2020/Player2 Game No. 82 Rogue 67 Adventurer 5 Explorer 10 Win Type 6 Total 28 Types 6/7/6/0/3/1/4/0/1 Lore% 90 Gallery% 96 Achievement% 85 Wizard Run 0 Options --------- ASCII 0 Keyboard 1 Movement Arrows Keybinds 0 Fullscreen 2 Font 18/SmallcapsGlow Map View 76x50 Tactical HUD 1 Map Filters NONE Filters NONE Steam 1 RUN: 09da6ac4-09b6-440a-99d9-0e66665bbddd